﻿Organisation Name,Organisation Code,Effective Date,Directorate,Service Category,Service Category URI,Supplier Name,Payment Date,Transaction Number,Net Amount,Irrecoverable VAT,Purpose_of_the_expenditure,Merchant Category
Wyre Council,http://opendatacommunities.org/doc/district-council/wyre,30/10/2023,Resources,Planning and Development Servs,132C,Daisy Communications LTD,23/10/2023,RS153398,50.70,0.00,Services Charges 01/10/23-31/10/38,Advertising - General
Wyre Council,http://opendatacommunities.org/doc/district-council/wyre,30/10/2023,Resources,Cultural and Related Services,132A,Visual Print and Design Ltd,23/10/2023,RS153614,580.00,0.00,"Heritage leaflets, x 5000 copies, 592mm x 210mm flat size, folded twice landscape to A5 8pp, 150gsm silk",Advertising - General
Wyre Council,http://opendatacommunities.org/doc/district-council/wyre,30/10/2023,People and Places,Planning and Development Servs,132C,National World Publishing Ltd,02/10/2023,PE153306,369.84,0.00,Blackpool and Garstang Press Notice 20.09.23,Advertising - Statutory Notices
Wyre Council,http://opendatacommunities.org/doc/district-council/wyre,30/10/2023,People and Places,Planning and Development Servs,132C,National World Publishing Ltd,02/10/2023,PE153305,462.30,0.00,Blackpool and Garstang Press Notice 13.09.23,Advertising - Statutory Notices
Wyre Council,http://opendatacommunities.org/doc/district-council/wyre,30/10/2023,Resources,Housing General Fund,134A,RHEA PROJECTS LTD,25/10/2023,RS153945,1970.00,0.00,"Affordable warmth support, Invoice RP-1957",Affordable Warmth 2017/18
Wyre Council,http://opendatacommunities.org/doc/district-council/wyre,30/10/2023,Resources,Housing General Fund,134A,Vivid Resourcing Ltd,10/10/2023,RS153447,5234.76,0.00,Invoice - 120727,Agency Staff
Wyre Council,http://opendatacommunities.org/doc/district-council/wyre,30/10/2023,Resources,Support Services,135B,G2V Recruitment Group Ltd T/A G2 Recruitment Solu,10/10/2023,RS153446,1653.60,0.00,Payment of invoice - NO SLIG2R0125797 - Period End 24/09/2023,Agency Staff
Wyre Council,http://opendatacommunities.org/doc/district-council/wyre,30/10/2023,Resources,Support Services,135B,G2V Recruitment Group Ltd T/A G2 Recruitment Solu,17/10/2023,RS153657,1685.97,0.00,Payment of invoice - NO SLIG2R0126584 -  period End - 08/10/2023,Agency Staff
Wyre Council,http://opendatacommunities.org/doc/district-council/wyre,30/10/2023,Resources,Support Services,135B,G2V Recruitment Group Ltd T/A G2 Recruitment Solu,24/10/2023,RS153944,1677.00,0.00,Invoice  - SLG2R0127056 week ending 15/10/23,Agency Staff
Wyre Council,http://opendatacommunities.org/doc/district-council/wyre,30/10/2023,Resources,Support Services,135B,G2V Recruitment Group Ltd T/A G2 Recruitment Solu,16/10/2023,RS153658,1525.27,0.00,Payment of invoice - NO SLIG2R0126076 - Period End  01/10/2023,Agency Staff
Wyre Council,http://opendatacommunities.org/doc/district-council/wyre,30/10/2023,People and Places,Cultural and Related Services,132A,Quantum Staffing Solutions Ltd,25/10/2023,PE153997,66.83,0.00,Agency staff we 15/10/23,Agency Staff
Wyre Council,http://opendatacommunities.org/doc/district-council/wyre,30/10/2023,People and Places,Cultural and Related Services,132A,Quantum Staffing Solutions Ltd,18/10/2023,PE153826,118.80,0.00,Agency staff - we 1/10/23,Agency Staff
Wyre Council,http://opendatacommunities.org/doc/district-council/wyre,30/10/2023,People and Places,Cultural and Related Services,132A,Quantum Staffing Solutions Ltd,18/10/2023,PE153825,59.40,0.00,Agency staff 4/10/23,Agency Staff
Wyre Council,http://opendatacommunities.org/doc/district-council/wyre,30/10/2023,People and Places,Cultural and Related Services,132A,Quantum Staffing Solutions Ltd,18/10/2023,PE153824,66.83,0.00,Agency - we 8/10/23,Agency Staff
Wyre Council,http://opendatacommunities.org/doc/district-council/wyre,30/10/2023,People and Places,Cultural and Related Services,132A,Quantum Staffing Solutions Ltd,03/10/2023,PE153314,207.90,0.00,Agency staff w/e 24/9/23,Agency Staff
Wyre Council,http://opendatacommunities.org/doc/district-council/wyre,30/10/2023,Resources,Support Services,135B,Daisy Communications LTD,23/10/2023,RS153398,13.87,0.00,Services Charges 01/10/23-31/10/44,Alarm Systems and Security - Annual
Wyre Council,http://opendatacommunities.org/doc/district-council/wyre,30/10/2023,People and Places,Support Services,135B,M D Security,23/10/2023,PE153814,60.00,0.00,cIVIC cENTRE: eMERGENCY LIGHT TEST FOR 10/23,Alarm Systems and Security - Annual
Wyre Council,http://opendatacommunities.org/doc/district-council/wyre,30/10/2023,People and Places,Planning and Development Servs,132C,M D Security,23/10/2023,PE153536,99.50,0.00,"Copse Road Transport Depot: Investigated set fails. Replaced roller shutter contact, tested and left working",Alarm Systems and Security - Responsive
Wyre Council,http://opendatacommunities.org/doc/district-council/wyre,30/10/2023,People and Places,Cultural and Related Services,132A,M D Security,23/10/2023,PE153835,69.00,0.00,"Mount Pavilion: Replaced 1 x CR2 shock sensor, 8 x AA batteries in SAB. Reset system, tested and left working",Alarm Systems and Security - Responsive
Wyre Council,http://opendatacommunities.org/doc/district-council/wyre,30/10/2023,People and Places,Planning and Development Servs,132C,M D Security,23/10/2023,PE153834,65.00,0.00,"Market House Creative Studios Fwd Market: replaced 3 x CR2032 batteries on entrance door, kitchen fire exit and RHS ground floor fire exit. Reset system, tested all ok, armed on leaving site",Alarm Systems and Security - Responsive
Wyre Council,http://opendatacommunities.org/doc/district-council/wyre,30/10/2023,People and Places,Cultural and Related Services,132A,M D Security,24/10/2023,PE153423,60.00,0.00,Mount Pavilion alarm - credited,Alarm Systems and Security - Responsive
Wyre Council,http://opendatacommunities.org/doc/district-council/wyre,30/10/2023,People and Places,Cultural and Related Services,132A,M D Security,10/10/2023,PE153424,50.00,0.00,Marine Hall: Call out to repair door contact. Re-stuck magnet on with CT1 silicone,Alarm Systems and Security - Responsive
Wyre Council,http://opendatacommunities.org/doc/district-council/wyre,30/10/2023,People and Places,Planning and Development Servs,132C,M D Security,26/10/2023,PE154009,165.00,0.00,Fleetwood Market: Replaced call point adjacent main room,Alarm Systems and Security - Responsive
Wyre Council,http://opendatacommunities.org/doc/district-council/wyre,30/10/2023,People and Places,Cultural and Related Services,132A,M D Security,26/10/2023,PE154010,95.00,0.00,Mount Pavilion: Replaced 8 x AA batteries in fire sensor top of stairs and battery in plant room door,Alarm Systems and Security - Responsive
Wyre Council,http://opendatacommunities.org/doc/district-council/wyre,30/10/2023,People and Places,Planning and Development Servs,132C,Road Safety Services LTD,10/10/2023,PE153465,1246.40,0.00,Cleveleys road closures for street market  Wednesdays Septemberdiversion signs including erection and taking down each week,Amenity and Information Signs
Wyre Council,http://opendatacommunities.org/doc/district-council/wyre,30/10/2023,Finance,Support Services,135B,,23/10/2023,WPST00122554,2753.00,0.00,Sep 23 Total Apprenticeship Levy,Apprenticeship Levy
Wyre Council,http://opendatacommunities.org/doc/district-council/wyre,30/10/2023,People and Places,Cultural and Related Services,132A,Tony Denton Promotions Ltd,09/10/2023,PE153427,2000.00,0.00,The Three Degrees - Marine Hall 22/9/23,Artistes Fees
Wyre Council,http://opendatacommunities.org/doc/district-council/wyre,30/10/2023,Resources,Corporate and Democratic Core,131A,PR Chauffeuring Services,13/10/2023,RS153626,1441.00,0.00,Mayoral Chauffeuring Monthly journeys - September 2023,Attendant Chauffeur Service
Wyre Council,http://opendatacommunities.org/doc/district-council/wyre,30/10/2023,Finance,Corporate and Democratic Core,131A,NATWEST BANK,23/10/2023,WPST00122600,1222.41,0.00,19/10/23 Worldpay Invoice 275618909,Bank Charges
Wyre Council,http://opendatacommunities.org/doc/district-council/wyre,30/10/2023,Finance,Corporate and Democratic Core,131A,NATWEST BANK,23/10/2023,WPST00122591,1113.05,0.00,19/10/23 Worldpay Invoice 275553992,Bank Charges
Wyre Council,http://opendatacommunities.org/doc/district-council/wyre,30/10/2023,Finance,Corporate and Democratic Core,131A,NATWEST BANK,03/10/2023,WPST00120430,761.17,0.00,01SEP GRP 99795000,Bank Charges
Wyre Council,http://opendatacommunities.org/doc/district-council/wyre,30/10/2023,People and Places,Cultural and Related Services,132A,M J Wilkinson,24/10/2023,PE153978,42.24,0.00,Hitachi ZX19 Excavator11/9/23,Barrier Security
Wyre Council,http://opendatacommunities.org/doc/district-council/wyre,30/10/2023,People and Places,Cultural and Related Services,132A,M J Wilkinson,24/10/2023,PE153978,21.11,0.00,Delivery charge,Barrier Security
Wyre Council,http://opendatacommunities.org/doc/district-council/wyre,30/10/2023,People and Places,Cultural and Related Services,132A,M J Wilkinson,24/10/2023,PE153978,21.11,0.00,Collection charge,Barrier Security
Wyre Council,http://opendatacommunities.org/doc/district-council/wyre,30/10/2023,People and Places,Cultural and Related Services,132A,M J Wilkinson,24/10/2023,PE153956,811.20,0.00,Hitachi ZX85 Excavator Roundway 14/8/23 - 17/8/23Time sheet 11095,Barrier Security
Wyre Council,http://opendatacommunities.org/doc/district-council/wyre,30/10/2023,People and Places,Cultural and Related Services,132A,M J Wilkinson,24/10/2023,PE153956,60.00,0.00,Forks for 8T 14/8/23 - 17/8/23,Barrier Security
Wyre Council,http://opendatacommunities.org/doc/district-council/wyre,30/10/2023,People and Places,Cultural and Related Services,132A,M J Wilkinson,24/10/2023,PE153956,200.00,0.00,Tilting Bucket to fit 8T Excavator 14/8/23 - 17/8/23,Barrier Security
Wyre Council,http://opendatacommunities.org/doc/district-council/wyre,30/10/2023,People and Places,Cultural and Related Services,132A,M J Wilkinson,24/10/2023,PE153956,160.00,0.00,Compactor Plate for 8T 14/8/23 - 17/8/23,Barrier Security
Wyre Council,http://opendatacommunities.org/doc/district-council/wyre,30/10/2023,People and Places,Cultural and Related Services,132A,M J Wilkinson,24/10/2023,PE153956,66.00,0.00,Labour 18/8/23 Time sheet 11095,Barrier Security
Wyre Council,http://opendatacommunities.org/doc/district-council/wyre,30/10/2023,People and Places,Cultural and Related Services,132A,M J Wilkinson,24/10/2023,PE153952,608.40,0.00,Hitachi ZX85 Excavator 31/7/23 - 3/8/23Time sheet 11092,Barrier Security
Wyre Council,http://opendatacommunities.org/doc/district-council/wyre,30/10/2023,People and Places,Cultural and Related Services,132A,M J Wilkinson,24/10/2023,PE153949,675.52,0.00,Thwaites 3T DumperRoundway 14/8/23 - 17/8/23Time sheet 11101,Barrier Security
Wyre Council,http://opendatacommunities.org/doc/district-council/wyre,30/10/2023,People and Places,Cultural and Related Services,132A,M J Wilkinson,24/10/2023,PE153952,150.00,0.00,Tilting Bucket to fit 8T Excavator 31/7/23 - 6/8/23,Barrier Security
Wyre Council,http://opendatacommunities.org/doc/district-council/wyre,30/10/2023,People and Places,Cultural and Related Services,132A,M J Wilkinson,24/10/2023,PE153952,120.00,0.00,Compactor Plate for 8T 31/7/23 - 6/8/23,Barrier Security
Wyre Council,http://opendatacommunities.org/doc/district-council/wyre,30/10/2023,People and Places,Cultural and Related Services,132A,M J Wilkinson,24/10/2023,PE153952,105.60,0.00,Labour 1/8/23 Time sheet 11092,Barrier Security
Wyre Council,http://opendatacommunities.org/doc/district-council/wyre,30/10/2023,People and Places,Cultural and Related Services,132A,M J Wilkinson,24/10/2023,PE153952,105.60,0.00,Labour 31/7/23Time sheet 9599,Barrier Security
Wyre Council,http://opendatacommunities.org/doc/district-council/wyre,30/10/2023,People and Places,Cultural and Related Services,132A,M J Wilkinson,24/10/2023,PE153949,211.24,0.00,Hitachi ZX27 Excavator 14/8/23 - 17/8/23,Barrier Security
Wyre Council,http://opendatacommunities.org/doc/district-council/wyre,30/10/2023,People and Places,Cultural and Related Services,132A,M J Wilkinson,24/10/2023,PE153949,66.00,0.00,Labour 18/8/23 Time sheet 11101,Barrier Security
Wyre Council,http://opendatacommunities.org/doc/district-council/wyre,30/10/2023,People and Places,Cultural and Related Services,132A,M J Wilkinson,24/10/2023,PE153948,211.24,0.00,Hitachi ZX27 Excavator 21/8/23 - 24/8/23Roundway,Barrier Security
Wyre Council,http://opendatacommunities.org/doc/district-council/wyre,30/10/2023,People and Places,Cultural and Related Services,132A,M J Wilkinson,24/10/2023,PE153948,675.52,0.00,Thwaites 3T Dumper 21/8/23 - 24/8/23 Time sheet 11102,Barrier Security
Wyre Council,http://opendatacommunities.org/doc/district-council/wyre,30/10/2023,People and Places,Cultural and Related Services,132A,M J Wilkinson,24/10/2023,PE153948,925.29,0.00,Hitachi ZX85 Excavator 21/8/23 - 24/8/23 Time sheet 11096,Barrier Security
Wyre Council,http://opendatacommunities.org/doc/district-council/wyre,30/10/2023,People and Places,Cultural and Related Services,132A,M J Wilkinson,24/10/2023,PE153948,200.00,0.00,Tilting bucket to fit 8T Excavator 21/8/23 - 24/8/23,Barrier Security
Wyre Council,http://opendatacommunities.org/doc/district-council/wyre,30/10/2023,People and Places,Cultural and Related Services,132A,M J Wilkinson,24/10/2023,PE153948,160.00,0.00,Compactor Plate for 8T 21/8/23 - 24/8/23,Barrier Security
Wyre Council,http://opendatacommunities.org/doc/district-council/wyre,30/10/2023,People and Places,Cultural and Related Services,132A,M J Wilkinson,24/10/2023,PE153948,60.00,0.00,Forks for 8T 21/8/23 - 24/8/23,Barrier Security
Wyre Council,http://opendatacommunities.org/doc/district-council/wyre,30/10/2023,People and Places,Cultural and Related Services,132A,M J Wilkinson,24/10/2023,PE153951,168.88,0.00,Hitachi ZX27 Excavator 8/8/23Time sheet 9600,Barrier Security
Wyre Council,http://opendatacommunities.org/doc/district-council/wyre,30/10/2023,People and Places,Cultural and Related Services,132A,M J Wilkinson,24/10/2023,PE153951,26.41,0.00,Delivery charge,Barrier Security
Wyre Council,http://opendatacommunities.org/doc/district-council/wyre,30/10/2023,People and Places,Cultural and Related Services,132A,M J Wilkinson,24/10/2023,PE153951,26.41,0.00,Collection charge,Barrier Security
Wyre Council,http://opendatacommunities.org/doc/district-council/wyre,30/10/2023,People and Places,Cultural and Related Services,132A,M J Wilkinson,24/10/2023,PE153955,937.95,0.00,Hitachi ZX85 Excavator Roundway 7/8/23 - 13/8/23 Time sheet 11094,Barrier Security
Wyre Council,http://opendatacommunities.org/doc/district-council/wyre,30/10/2023,People and Places,Cultural and Related Services,132A,M J Wilkinson,24/10/2023,PE153955,250.00,0.00,Tilting Bucket to fit 8T Excavator 7/8/23 - 13/8/23,Barrier Security
Wyre Council,http://opendatacommunities.org/doc/district-council/wyre,30/10/2023,People and Places,Cultural and Related Services,132A,M J Wilkinson,24/10/2023,PE153955,200.00,0.00,Compactor Plate for 8T 7/8/23 - 13/8/23,Barrier Security
Wyre Council,http://opendatacommunities.org/doc/district-council/wyre,30/10/2023,People and Places,Cultural and Related Services,132A,M J Wilkinson,24/10/2023,PE153955,75.00,0.00,Forks for 8T 7/8/23 - 13/8/23,Barrier Security
Wyre Council,http://opendatacommunities.org/doc/district-council/wyre,30/10/2023,People and Places,Cultural and Related Services,132A,M J Wilkinson,24/10/2023,PE153955,443.31,0.00,Thwaites 3T Dumper8/8/23 - 11/8/23Time sheet 9600,Barrier Security
Wyre Council,http://opendatacommunities.org/doc/district-council/wyre,30/10/2023,People and Places,Cultural and Related Services,132A,M J Wilkinson,24/10/2023,PE153955,158.43,0.00,Hitachi ZX29 Excavator 9/8/23 - 11/8/23,Barrier Security
Wyre Council,http://opendatacommunities.org/doc/district-council/wyre,30/10/2023,People and Places,Cultural and Related Services,132A,M J Wilkinson,24/10/2023,PE153955,68.65,0.00,8T machine move,Barrier Security
Wyre Council,http://opendatacommunities.org/doc/district-council/wyre,30/10/2023,People and Places,Cultural and Related Services,132A,M J Wilkinson,24/10/2023,PE153955,25.00,0.00,Delivery charge,Barrier Security
Wyre Council,http://opendatacommunities.org/doc/district-council/wyre,30/10/2023,People and Places,Cultural and Related Services,132A,M J Wilkinson,24/10/2023,PE153953,675.00,0.00,"Clay delivered Roundway, Fleetwood7/8/2311550, 11546, 11547, 11548, 11549",Barrier Security
Wyre Council,http://opendatacommunities.org/doc/district-council/wyre,30/10/2023,People and Places,Cultural and Related Services,132A,M J Wilkinson,24/10/2023,PE153953,675.00,0.00,"Clay delivered Roundway, Fleetwood10/8/2312619, 12629, 12615, 12616, 12617",Barrier Security
Wyre Council,http://opendatacommunities.org/doc/district-council/wyre,30/10/2023,People and Places,Cultural and Related Services,132A,M J Wilkinson,24/10/2023,PE153953,405.00,0.00,"Clay delivered Roundway, Fleetwood17/8/2313221, 12728, 12726",Barrier Security
Wyre Council,http://opendatacommunities.org/doc/district-council/wyre,30/10/2023,People and Places,Cultural and Related Services,132A,M J Wilkinson,24/10/2023,PE153953,135.00,0.00,"Clay delivered Roundway, Fleetwood30/8/2313194",Barrier Security
Wyre Council,http://opendatacommunities.org/doc/district-council/wyre,30/10/2023,People and Places,Cultural and Related Services,132A,M J Wilkinson,25/10/2023,PE153954,675.52,0.00,Hitachi ZX26 Excavator 10/10/23Time sheet 11099,Barrier Security
Wyre Council,http://opendatacommunities.org/doc/district-council/wyre,30/10/2023,People and Places,Cultural and Related Services,132A,M J Wilkinson,25/10/2023,PE153954,26.41,0.00,Delivery charge,Barrier Security
Wyre Council,http://opendatacommunities.org/doc/district-council/wyre,30/10/2023,People and Places,Cultural and Related Services,132A,M J Wilkinson,25/10/2023,PE153954,26.41,0.00,Collection charge,Barrier Security
Wyre Council,http://opendatacommunities.org/doc/district-council/wyre,30/10/2023,People and Places,Cultural and Related Services,132A,M J Wilkinson,25/10/2023,PE153950,337.76,0.00,Thwaites 3T Dumper Roundway 7/8/23 - 8/8/23Time sheet 11093,Barrier Security
Wyre Council,http://opendatacommunities.org/doc/district-council/wyre,30/10/2023,People and Places,Cultural and Related Services,132A,M J Wilkinson,25/10/2023,PE153950,105.62,0.00,Hitachi ZX27 Excavator 7/8/23 - 8/8/23,Barrier Security
Wyre Council,http://opendatacommunities.org/doc/district-council/wyre,30/10/2023,People and Places,Cultural and Related Services,132A,M J Wilkinson,25/10/2023,PE153950,26.41,0.00,Delivery charge for 3T Machine,Barrier Security
Wyre Council,http://opendatacommunities.org/doc/district-council/wyre,30/10/2023,People and Places,Cultural and Related Services,132A,M J Wilkinson,25/10/2023,PE153950,26.41,0.00,Delivery charge for 3T Dumper,Barrier Security
Wyre Council,http://opendatacommunities.org/doc/district-council/wyre,30/10/2023,People and Places,Cultural and Related Services,132A,M J Wilkinson,25/10/2023,PE153947,337.76,0.00,Thwaites 3T DumperRoundway 30/8/23 - 31/8/23Time sheet 11103,Barrier Security
Wyre Council,http://opendatacommunities.org/doc/district-council/wyre,30/10/2023,People and Places,Cultural and Related Services,132A,M J Wilkinson,25/10/2023,PE153947,105.62,0.00,Hitachi ZX27 Excavator 30/08/2023 - 31/8/23,Barrier Security
Wyre Council,http://opendatacommunities.org/doc/district-council/wyre,30/10/2023,People and Places,Cultural and Related Services,132A,M J Wilkinson,25/10/2023,PE153947,405.60,0.00,Hitachi ZX85 Excavator30/8/23 - 31/8/23Time sheet 11097,Barrier Security
Wyre Council,http://opendatacommunities.org/doc/district-council/wyre,30/10/2023,People and Places,Cultural and Related Services,132A,M J Wilkinson,25/10/2023,PE153947,100.00,0.00,Tilting Bucket to fit 8T Excavator 30/8/23 - 31/8/23,Barrier Security
Wyre Council,http://opendatacommunities.org/doc/district-council/wyre,30/10/2023,People and Places,Cultural and Related Services,132A,M J Wilkinson,25/10/2023,PE153947,80.00,0.00,Compactor plate for 8T 30/8/23 - 31/8/23,Barrier Security
Wyre Council,http://opendatacommunities.org/doc/district-council/wyre,30/10/2023,People and Places,Cultural and Related Services,132A,M J Wilkinson,25/10/2023,PE153947,30.00,0.00,Forks for 8T 30/8/23 - 31/8/23,Barrier Security
Wyre Council,http://opendatacommunities.org/doc/district-council/wyre,30/10/2023,People and Places,Cultural and Related Services,132A,M J Wilkinson,25/10/2023,PE153946,405.60,0.00,Hitachi ZX85 Excavator Roundway 10/10/23Time sheet 11098,Barrier Security
Wyre Council,http://opendatacommunities.org/doc/district-council/wyre,30/10/2023,People and Places,Cultural and Related Services,132A,M J Wilkinson,25/10/2023,PE153946,100.00,0.00,Tilting bucket to fit 8T excavator5/9/23 - 6/9/23,Barrier Security
Wyre Council,http://opendatacommunities.org/doc/district-council/wyre,30/10/2023,People and Places,Cultural and Related Services,132A,M J Wilkinson,25/10/2023,PE153946,80.00,0.00,Compactor Plate for 8T5/9/23 - 6/9/23,Barrier Security
Wyre Council,http://opendatacommunities.org/doc/district-council/wyre,30/10/2023,People and Places,Cultural and Related Services,132A,M J Wilkinson,25/10/2023,PE153946,337.76,0.00,Thwaites 3T dumper 5/9/23 - 6/9/23Time sheet number 11104,Barrier Security
Wyre Council,http://opendatacommunities.org/doc/district-council/wyre,30/10/2023,People and Places,Cultural and Related Services,132A,M J Wilkinson,25/10/2023,PE153946,105.62,0.00,Hitachi ZX27 Excavator 5/9/23 - 6/9/23,Barrier Security
Wyre Council,http://opendatacommunities.org/doc/district-council/wyre,30/10/2023,People and Places,Cultural and Related Services,132A,M J Wilkinson,25/10/2023,PE153946,79.22,0.00,Collection charge £79.22,Barrier Security
Wyre Council,http://opendatacommunities.org/doc/district-council/wyre,30/10/2023,People and Places,Cultural and Related Services,132A,M J Wilkinson,25/10/2023,PE153946,26.41,0.00,Collection charge £26.41,Barrier Security
Wyre Council,http://opendatacommunities.org/doc/district-council/wyre,30/10/2023,People and Places,Cultural and Related Services,132A,M J Wilkinson,25/10/2023,PE153946,26.41,0.00,Collection charge £26.41,Barrier Security
Wyre Council,http://opendatacommunities.org/doc/district-council/wyre,30/10/2023,People and Places,Cultural and Related Services,132A,M J Wilkinson,25/10/2023,PE153952,-608.40,0.00,Hitachi ZX85 Excavator 31/7/23 - 3/8/23Time sheet 11092,Barrier Security
Wyre Council,http://opendatacommunities.org/doc/district-council/wyre,30/10/2023,People and Places,Cultural and Related Services,132A,M J Wilkinson,25/10/2023,PE153952,-150.00,0.00,Tilting Bucket to fit 8T Excavator 31/7/23 - 6/8/23,Barrier Security
Wyre Council,http://opendatacommunities.org/doc/district-council/wyre,30/10/2023,People and Places,Cultural and Related Services,132A,M J Wilkinson,25/10/2023,PE153952,-120.00,0.00,Compactor Plate for 8T 31/7/23 - 6/8/23,Barrier Security
Wyre Council,http://opendatacommunities.org/doc/district-council/wyre,30/10/2023,People and Places,Cultural and Related Services,132A,M J Wilkinson,25/10/2023,PE153952,-105.60,0.00,Labour 1/8/23 Time sheet 11092,Barrier Security
Wyre Council,http://opendatacommunities.org/doc/district-council/wyre,30/10/2023,People and Places,Cultural and Related Services,132A,M J Wilkinson,25/10/2023,PE153952,-105.60,0.00,Labour 31/7/23Time sheet 9599,Barrier Security
Wyre Council,http://opendatacommunities.org/doc/district-council/wyre,30/10/2023,People and Places,Cultural and Related Services,132A,M J Wilkinson,23/10/2023,PE153671,1089.60,0.00,Hire of excavator and compactor plate with labout 31/07/23 to 03/08/23,Barrier Security
Wyre Council,http://opendatacommunities.org/doc/district-council/wyre,30/10/2023,People and Places,Cultural and Related Services,132A,Northern Citrus Products LTD,10/10/2023,PE153457,56.00,0.00,1/2 pint disposable glasses,Catering Disposables
Wyre Council,http://opendatacommunities.org/doc/district-council/wyre,30/10/2023,People and Places,Environmental Services,132B,M D Security,16/10/2023,PE153718,250.00,0.00,6 monthly CCTV Service Chatsworth Depot,CCTV Running Costs
Wyre Council,http://opendatacommunities.org/doc/district-council/wyre,30/10/2023,People and Places,Planning and Development Servs,132C,M D Security,13/10/2023,PE153625,2440.00,0.00,For:  Copse Road Maintenance Depot. Monitoring of CCTV for 1 year from 01/10/23 to 01/10/24,CCTV Running Costs
Wyre Council,http://opendatacommunities.org/doc/district-council/wyre,30/10/2023,People and Places,Planning and Development Servs,132C,M D Security,30/10/2023,PE153748,890.00,0.00,to supply and fit 2 No. CCTV external sensors units to code 3711/46831 for a price of £890 + VAT,CCTV Running Costs
Wyre Council,http://opendatacommunities.org/doc/district-council/wyre,30/10/2023,People and Places,Environmental Services,132B,N Power LTD,13/10/2023,PE153443,118.93,0.00,1630000862336 Unmetered Town Centre CCTV Usage 1-30 Sept23 (233.37 kWh),CCTV Running Costs
Wyre Council,http://opendatacommunities.org/doc/district-council/wyre,30/10/2023,People and Places,Environmental Services,132B,N Power LTD,13/10/2023,PE153443,4.82,0.00,1630000862336 Unmetered Town Centre CCTV Usage 1-30 Sept23 CCL,CCTV Running Costs
Wyre Council,http://opendatacommunities.org/doc/district-council/wyre,30/10/2023,People and Places,Environmental Services,132B,N Power LTD,13/10/2023,PE153443,173.61,0.00,1630000862336 Unmetered Town Centre CCTV Usage 1-30 Sept23 (350.12kWh),CCTV Running Costs
Wyre Council,http://opendatacommunities.org/doc/district-council/wyre,30/10/2023,People and Places,Environmental Services,132B,N Power LTD,13/10/2023,PE153443,19.83,0.00,1630000862336 Unmetered Town Centre CCTV Usage 1-30 Sept23 (38.91 kWh),CCTV Running Costs
Wyre Council,http://opendatacommunities.org/doc/district-council/wyre,30/10/2023,People and Places,Cultural and Related Services,132A,Key Engineering & Hygiene Supplies LTD,25/10/2023,PE153963,27.94,0.00,GREEN 1 PLY INTER-FOLD HAND TOWEL 250L X 190W 3600 SHEETS,Cleaning Materials
Wyre Council,http://opendatacommunities.org/doc/district-council/wyre,30/10/2023,People and Places,Cultural and Related Services,132A,Key Engineering & Hygiene Supplies LTD,25/10/2023,PE153963,16.32,0.00,THICK BLEACH 75OML,Cleaning Materials
Wyre Council,http://opendatacommunities.org/doc/district-council/wyre,30/10/2023,People and Places,Planning and Development Servs,132C,Key Engineering & Hygiene Supplies LTD,30/10/2023,PE153468,20.16,0.00,EAUFRESH NON ACIDIC APPLE TOILET CLEANER 1 LTR,Cleaning Materials
Wyre Council,http://opendatacommunities.org/doc/district-council/wyre,30/10/2023,People and Places,Planning and Development Servs,132C,Key Engineering & Hygiene Supplies LTD,30/10/2023,PE153468,16.32,0.00,THICK BLEACH 75OML,Cleaning Materials
Wyre Council,http://opendatacommunities.org/doc/district-council/wyre,30/10/2023,People and Places,Planning and Development Servs,132C,Key Engineering & Hygiene Supplies LTD,13/10/2023,PE153588,32.24,0.00,4 x pink pearl - 4 x nail brush,Cleaning Materials
Wyre Council,http://opendatacommunities.org/doc/district-council/wyre,30/10/2023,People and Places,Planning and Development Servs,132C,Key Engineering & Hygiene Supplies LTD,24/10/2023,PE153912,49.44,0.00,Box - Cranberry Air Freshener,Cleaning Materials
Wyre Council,http://opendatacommunities.org/doc/district-council/wyre,30/10/2023,People and Places,Planning and Development Servs,132C,Key Engineering & Hygiene Supplies LTD,24/10/2023,PE153912,45.72,0.00,LUX PEARL HAND/BODY SOAP 5 LTR,Cleaning Materials
Wyre Council,http://opendatacommunities.org/doc/district-council/wyre,30/10/2023,Resources,Support Services,135B,Key Engineering & Hygiene Supplies LTD,16/10/2023,RS153651,18.36,0.00,EAUFRESH NON ACIDIC POT POURRI TOILET CLEANER 1 LTR,Cleaning Materials
Wyre Council,http://opendatacommunities.org/doc/district-council/wyre,30/10/2023,Resources,Support Services,135B,Key Engineering & Hygiene Supplies LTD,16/10/2023,RS153651,3.08,0.00,BLUE NITRILE POWDER FREE GLOVES LARGE,Cleaning Materials
Wyre Council,http://opendatacommunities.org/doc/district-council/wyre,30/10/2023,Resources,Support Services,135B,Key Engineering & Hygiene Supplies LTD,16/10/2023,RS153651,8.24,0.00,ENSURE ALCOHOL BASED SANITISER 5 LITRE,Cleaning Materials
Wyre Council,http://opendatacommunities.org/doc/district-council/wyre,30/10/2023,Resources,Support Services,135B,Key Engineering & Hygiene Supplies LTD,16/10/2023,RS153651,6.38,0.00,KEYPINE PINE DISINFECTANT 5 LITRE,Cleaning Materials
Wyre Council,http://opendatacommunities.org/doc/district-council/wyre,30/10/2023,Resources,Support Services,135B,Key Engineering & Hygiene Supplies LTD,16/10/2023,RS153651,5.22,0.00,KIND DETERGENT 5 LITRE,Cleaning Materials
Wyre Council,http://opendatacommunities.org/doc/district-council/wyre,30/10/2023,Resources,Support Services,135B,Key Engineering & Hygiene Supplies LTD,16/10/2023,RS153651,14.34,0.00,LIQUID SPRAY POLISH 750ML TRIGGER SPRAY,Cleaning Materials
Wyre Council,http://opendatacommunities.org/doc/district-council/wyre,30/10/2023,Resources,Support Services,135B,Key Engineering & Hygiene Supplies LTD,16/10/2023,RS153651,8.24,0.00,VERSATILE HARD SURFACE CLEANER 5 LITRE,Cleaning Materials
Wyre Council,http://opendatacommunities.org/doc/district-council/wyre,30/10/2023,Resources,Support Services,135B,Key Engineering & Hygiene Supplies LTD,16/10/2023,RS153651,245.50,0.00,BLUE INTERFOLD HAND TOWELS 3600 SHEETS,Cleaning Materials
Wyre Council,http://opendatacommunities.org/doc/district-council/wyre,30/10/2023,Resources,Support Services,135B,Key Engineering & Hygiene Supplies LTD,16/10/2023,RS153651,145.04,0.00,SOFTLUX 3 PLY TOILET ROLL(10 X 4),Cleaning Materials
Wyre Council,http://opendatacommunities.org/doc/district-council/wyre,30/10/2023,Resources,Support Services,135B,Key Engineering & Hygiene Supplies LTD,16/10/2023,RS153651,27.72,0.00,POT POURRI AIR FRESHENER 400ML,Cleaning Materials
Wyre Council,http://opendatacommunities.org/doc/district-council/wyre,30/10/2023,Resources,Support Services,135B,Key Engineering & Hygiene Supplies LTD,16/10/2023,RS153651,28.98,0.00,REGULAR BLACK SACKS 18X29X38,Cleaning Materials
Wyre Council,http://opendatacommunities.org/doc/district-council/wyre,30/10/2023,Resources,Support Services,135B,Key Engineering & Hygiene Supplies LTD,16/10/2023,RS153651,5.06,0.00,HEAVY DUTY HAND SHOVEL,Cleaning Materials
Wyre Council,http://opendatacommunities.org/doc/district-council/wyre,30/10/2023,Resources,Support Services,135B,Amazon Business,24/10/2023,RS153942,11.55,0.00,DOMESTOS CITRUS FRESH YHICK BLEACH 750ML,Cleaning Materials
Wyre Council,http://opendatacommunities.org/doc/district-council/wyre,30/10/2023,Resources,Support Services,135B,Amazon Business,24/10/2023,RS153992,2.31,0.00,DOMESTOS CITRUS FRESH YHICK BLEACH 750ML,Cleaning Materials
Wyre Council,http://opendatacommunities.org/doc/district-council/wyre,30/10/2023,Resources,Support Services,135B,Amazon Business,24/10/2023,RS153994,11.55,0.00,DOMESTOS CITRUS FRESH YHICK BLEACH 750ML,Cleaning Materials
Wyre Council,http://opendatacommunities.org/doc/district-council/wyre,30/10/2023,Resources,Support Services,135B,Amazon Business,24/10/2023,RS153993,11.55,0.00,DOMESTOS CITRUS FRESH YHICK BLEACH 750ML,Cleaning Materials
Wyre Council,http://opendatacommunities.org/doc/district-council/wyre,30/10/2023,People and Places,Environmental Services,132B,Instrom Ltd,11/10/2023,PE153531,1790.00,0.00,Provision of consultancy services in respects to the upgrade of the council`s town centre CCTV network - Phase 2 - Procurement of Installation & Monitoring Contractor,Community Development Initiatives
Wyre Council,http://opendatacommunities.org/doc/district-council/wyre,30/10/2023,Resources,Support Services,135B,Ebuyer (UK) Ltd,10/10/2023,RS153467,1021.00,0.00,HPE Carepack 3 year Pickup And Return For 6720s/6820s/6715s/6735s/6830s/530/550/2140/2230s Laptop,Comp Hardware Purchases
Wyre Council,http://opendatacommunities.org/doc/district-council/wyre,30/10/2023,Resources,Support Services,135B,Ebuyer (UK) Ltd,10/10/2023,RS153307,240.00,0.00,Techair 15.6 Classic Laptop Backpack,Comp Hardware Purchases
Wyre Council,http://opendatacommunities.org/doc/district-council/wyre,30/10/2023,Resources,Support Services,135B,CCS MEDIA LTD,09/10/2023,RS153387,693.28,0.00," Cisco-MR76-HW Cisco Meraki MR76 White Power over Ethernet (PoE)2.4/5 GHz, Wi-Fi 6, PoE, IP67, 1 x 10/100/1000 Ethernet RJ-45, 1.7 Gbps",Comp Hardware Purchases
Wyre Council,http://opendatacommunities.org/doc/district-council/wyre,30/10/2023,Resources,Support Services,135B,CCS MEDIA LTD,09/10/2023,RS153387,231.32,0.00,"Cisco-MA-ANT-20 Cisco Meraki network antenna Omni-directional antenna N-type 7 dBi4/7 dBi Dual-Band Omni Antenna Set, Omni, N-type, 2 Pack",Comp Hardware Purchases
Wyre Council,http://opendatacommunities.org/doc/district-council/wyre,30/10/2023,Resources,Support Services,135B,Amazon Business,11/10/2023,RS153561,783.35,0.00,Samsung Galaxy Tab A8 SM-X205NZAE 4G LTE-TDD & LTE-FDD 64 GB 26.7 cm (10.5``) 4 GB Wi-Fi 5 (802.11ac) Android 11 Grey.,Comp Hardware Purchases
Wyre Council,http://opendatacommunities.org/doc/district-council/wyre,30/10/2023,People and Places,Support Services,135B,Amazon Business,25/10/2023,PE153918,19.99,0.00,"VOCLO Bluetooth Headphones Over Ear, A6 Wireless Headphones with 55 Hours Playtime, ENC Noise Cancelling Headphones with Hi-Res Audio, Protein Memory",Comp Hardware Purchases
Wyre Council,http://opendatacommunities.org/doc/district-council/wyre,30/10/2023,Resources,Support Services,135B,Amazon Business,20/10/2023,RS153849,24.16,0.00,"JBL Tune510BT - Wireless on-ear headphones featuring Bluetooth 5.0, up to 40 hours battery life and speed charge, in black",Comp Hardware Purchases
Wyre Council,http://opendatacommunities.org/doc/district-council/wyre,30/10/2023,Resources,Support Services,135B,Amazon Business,20/10/2023,RS153848,19.16,0.00,Sumvision PSYC Wave RX Wired and Wireless Bluetooth Headphones Earphones Over Ear Headset Hands Free Call Mic Noise Cancelling Prime Apple PC Smartphones Laptops TV Travel (UK DESIGN UK TECH SUPPORT),Comp Hardware Purchases
Wyre Council,http://opendatacommunities.org/doc/district-council/wyre,30/10/2023,Resources,Support Services,135B,Amazon Business,20/10/2023,RS153850,27.67,0.00,"Betron 50mm Over-Ear Wireless Headphones with Bluetooth Connection, Bass-Driven Audio, Built-in Microphone, HD800X, Black",Comp Hardware Purchases
Wyre Council,http://opendatacommunities.org/doc/district-council/wyre,30/10/2023,Resources,Support Services,135B,Amazon Business,17/10/2023,RS153710,46.64,0.00,"10Gtek® External Mini SAS HD SFF-8644 to Mini SAS SFF-8088 Hybrid Cable, 3-Meter(9.8-ft)",Comp Hardware Purchases
Wyre Council,http://opendatacommunities.org/doc/district-council/wyre,30/10/2023,Resources,Support Services,135B,Amazon Business,18/10/2023,RS153752,299.97,0.00,"Samsung F24T450FQR - T45F Series - LED monitor - 24`` - 1920 x 1080 Full HD (1080p) @ 75 Hz - IPS - 250 cd/m² - 1000:1-5 ms - 2xHDMI, DisplayPort - black.",Comp Hardware Purchases
Wyre Council,http://opendatacommunities.org/doc/district-council/wyre,30/10/2023,Resources,Support Services,135B,Amazon Business,18/10/2023,RS153818,299.97,0.00,"Samsung F24T450FQR - T45F Series - LED monitor - 24`` - 1920 x 1080 Full HD (1080p) @ 75 Hz - IPS - 250 cd/m² - 1000:1-5 ms - 2xHDMI, DisplayPort - black.",Comp Hardware Purchases
Wyre Council,http://opendatacommunities.org/doc/district-council/wyre,30/10/2023,Resources,Support Services,135B,Amazon Business,18/10/2023,RS153817,299.97,0.00,"Samsung F24T450FQR - T45F Series - LED monitor - 24`` - 1920 x 1080 Full HD (1080p) @ 75 Hz - IPS - 250 cd/m² - 1000:1-5 ms - 2xHDMI, DisplayPort - black.",Comp Hardware Purchases
Wyre Council,http://opendatacommunities.org/doc/district-council/wyre,30/10/2023,Resources,Support Services,135B,Amazon Business,18/10/2023,RS153816,299.97,0.00,"Samsung F24T450FQR - T45F Series - LED monitor - 24`` - 1920 x 1080 Full HD (1080p) @ 75 Hz - IPS - 250 cd/m² - 1000:1-5 ms - 2xHDMI, DisplayPort - black.",Comp Hardware Purchases
Wyre Council,http://opendatacommunities.org/doc/district-council/wyre,30/10/2023,Resources,Support Services,135B,Amazon Business,18/10/2023,RS153815,299.97,0.00,"Samsung F24T450FQR - T45F Series - LED monitor - 24`` - 1920 x 1080 Full HD (1080p) @ 75 Hz - IPS - 250 cd/m² - 1000:1-5 ms - 2xHDMI, DisplayPort - black.",Comp Hardware Purchases
Wyre Council,http://opendatacommunities.org/doc/district-council/wyre,30/10/2023,Resources,Support Services,135B,Amazon Business,18/10/2023,RS153819,299.97,0.00,"Samsung F24T450FQR - T45F Series - LED monitor - 24`` - 1920 x 1080 Full HD (1080p) @ 75 Hz - IPS - 250 cd/m² - 1000:1-5 ms - 2xHDMI, DisplayPort - black.",Comp Hardware Purchases
Wyre Council,http://opendatacommunities.org/doc/district-council/wyre,30/10/2023,Resources,Support Services,135B,Amazon Business,25/10/2023,RS153916,200.46,0.00,"Samsung F24T450FQR - T45F Series - LED monitor - 24`` - 1920 x 1080 Full HD (1080p) @ 75 Hz - IPS - 250 cd/m² - 1000:1-5 ms - 2xHDMI, DisplayPort - black.",Comp Hardware Purchases
Wyre Council,http://opendatacommunities.org/doc/district-council/wyre,30/10/2023,Resources,Support Services,135B,Amazon Business,09/10/2023,RS153371,24.92,0.00,"soundcore by Anker Q20 Hybrid Active Noise Cancelling Headphones, Wireless Over Ear Foldable Bluetooth Headphones, 40H Playtime, Hi-Res Audio, Deep Bass, Memory Foam Ear Cups, for Travel, Home Office.",Comp Hardware Purchases
Wyre Council,http://opendatacommunities.org/doc/district-council/wyre,30/10/2023,Resources,Support Services,135B,Amazon Business,09/10/2023,RS153370,24.99,0.00,"EarFun® Free 2S Wireless Earbuds, [Upgraded Version] Qualcomm® CVC™ 8.0 ENC, Bluetooth 5.2 Wireless Earbuds, Sweatshield™ IPX7 Waterproof Bluetooth Headphone, aptX™ Deep Bass, APP, Game Mode.",Comp Hardware Purchases
Wyre Council,http://opendatacommunities.org/doc/district-council/wyre,30/10/2023,Resources,Support Services,135B,Amazon Business,09/10/2023,RS153369,23.32,0.00,"OneOdio A70 Bluetooth Headphones Over Ear, 72 Hrs Playtime, Monitor Level Stereo Sound Quality, Foldable Wireless&#65286;Wired DJ Headphone, Professional Studio Headphones for DJ/TV/PC/Phone.",Comp Hardware Purchases
Wyre Council,http://opendatacommunities.org/doc/district-council/wyre,30/10/2023,Resources,Support Services,135B,Amazon Business,09/10/2023,RS153378,28.74,0.00,"Logitech H570e Wired Headset, Mono Headphones with Noise-Cancelling Microphone, USB, In-Line Controls with Mute Button, Indicator LED, PC/Mac/Laptop - Black.",Comp Hardware Purchases
Wyre Council,http://opendatacommunities.org/doc/district-council/wyre,30/10/2023,Resources,Support Services,135B,Amazon Business,09/10/2023,RS153375,24.17,0.00,"soundcore by Anker A20i True Wireless Earbuds, Bluetooth 5.3, App, Customized Sound, 28H Long Playtime, Water-Resistant, 2 Mics for Al Clear Calls, Single Earbud Mode, Portable Design.",Comp Hardware Purchases
Wyre Council,http://opendatacommunities.org/doc/district-council/wyre,30/10/2023,Resources,Support Services,135B,Amazon Business,09/10/2023,RS153375,21.66,0.00,"soundcore by Anker P20i True Wireless Earbuds, 10mm Drivers with Big Bass, Bluetooth 5.3, 30H Long Playtime, IPX5 Water-Resistant, 2 Mics for AI Clear Calls, 22 Preset EQs, Customization via App.",Comp Hardware Purchases
Wyre Council,http://opendatacommunities.org/doc/district-council/wyre,30/10/2023,Resources,Support Services,135B,Amazon Business,09/10/2023,RS153372,18.56,0.00,"JLab Go Air Pop True Wireless Earbuds, Headphones In Ear, Bluetooth Earphones with Microphone, Wireless Ear Buds, TWS Bluetooth Earbuds with Mic, USB Charging Case, Dual Connect, EQ3 Sound, Black.",Comp Hardware Purchases
Wyre Council,http://opendatacommunities.org/doc/district-council/wyre,30/10/2023,Resources,Support Services,135B,Amazon Business,09/10/2023,RS153380,1635.60,0.00,"UGREEN Revodok Pro USB C Docking Station, 11-in-1 USB C Hub Dual HDMI 4K@60Hz, Single 8K@30Hz, 10Gbps USB-C and USB-A Data Ports, 100W PD, Ethernet, SD/TF, 3.5mm Audio for XPS, ThinkPad, Surface.",Comp Hardware Purchases
Wyre Council,http://opendatacommunities.org/doc/district-council/wyre,30/10/2023,Resources,Support Services,135B,Amazon Business,09/10/2023,RS153379,49.99,0.00,"Logitech Crayon digital pencil for iPad (iPads with USB-C ports) featuring Apple Pencil technology, no lag pixel-precision, and dynamic smart tip with fast USB-C charge - Silver (Renewed).",Comp Hardware Purchases
Wyre Council,http://opendatacommunities.org/doc/district-council/wyre,30/10/2023,Resources,Support Services,135B,Amazon Business,09/10/2023,RS153381,50.04,0.00,SUMVISION PD 3.0 Quick Charge 3.0 100W USB C GaN Dual Port Compact Smart Charger Power Delivery Travel Charger Compatible Latest Macbook Pro iPad Samsung Nintendo (UK DESIGN UK PLUG UK TECH SUPPORT).,Comp Hardware Purchases
Wyre Council,http://opendatacommunities.org/doc/district-council/wyre,30/10/2023,Resources,Support Services,135B,Amazon Business,09/10/2023,RS153373,275.22,0.00,SUMVISION PD 3.0 Quick Charge 3.0 100W USB C GaN Dual Port Compact Smart Charger Power Delivery Travel Charger Compatible Latest Macbook Pro iPad Samsung Nintendo (UK DESIGN UK PLUG UK TECH SUPPORT).,Comp Hardware Purchases
Wyre Council,http://opendatacommunities.org/doc/district-council/wyre,30/10/2023,Resources,Support Services,135B,Amazon Business,09/10/2023,RS153377,375.30,0.00,SUMVISION PD 3.0 Quick Charge 3.0 100W USB C GaN Dual Port Compact Smart Charger Power Delivery Travel Charger Compatible Latest Macbook Pro iPad Samsung Nintendo (UK DESIGN UK PLUG UK TECH SUPPORT).,Comp Hardware Purchases
Wyre Council,http://opendatacommunities.org/doc/district-council/wyre,30/10/2023,Resources,Support Services,135B,Amazon Business,09/10/2023,RS153376,550.44,0.00,SUMVISION PD 3.0 Quick Charge 3.0 100W USB C GaN Dual Port Compact Smart Charger Power Delivery Travel Charger Compatible Latest Macbook Pro iPad Samsung Nintendo (UK DESIGN UK PLUG UK TECH SUPPORT).,Comp Hardware Purchases
Wyre Council,http://opendatacommunities.org/doc/district-council/wyre,30/10/2023,Resources,Support Services,135B,OX IT Solutions Ltd,30/10/2023,RS154087,6300.00,0.00,Yealink SIP T43U IP Phone x 100,Comp Hardware Purchases
Wyre Council,http://opendatacommunities.org/doc/district-council/wyre,30/10/2023,Resources,Support Services,135B,OX IT Solutions Ltd,30/10/2023,RS154087,20.00,0.00,shipping,Comp Hardware Purchases
Wyre Council,http://opendatacommunities.org/doc/district-council/wyre,30/10/2023,Resources,Support Services,135B,Amazon Business,11/10/2023,RS153560,5.82,0.00,Yizhet 1 pair Round Ear Pads 65mm Universal Replacement Earpads 2.5 inch Premium Protein Leather Memory Foam Ear Cushions for Headphone Ear Cup with 6.5cm Diameter.,Computer Stationery and Consumables
Wyre Council,http://opendatacommunities.org/doc/district-council/wyre,30/10/2023,Resources,Support Services,135B,Amazon Business,11/10/2023,RS153552,249.60,0.00,Laptop Stand Desk Tablet Stand (UK COMPANY) Home Office Accessories Adjustable Laptop Stand Computer Holder.,Computer Stationery and Consumables
Wyre Council,http://opendatacommunities.org/doc/district-council/wyre,30/10/2023,Resources,Support Services,135B,Amazon Business,11/10/2023,RS153551,133.16,0.00,"MEKO Stylus Pens for Touch Screens, Tablet Pencil with Magnetic Cap, High Sensitivity & Fine Point Universal for Android/Phone/iPad Pro/Air/Samsung/and All Devices (White)",Computer Stationery and Consumables
Wyre Council,http://opendatacommunities.org/doc/district-council/wyre,30/10/2023,Resources,Support Services,135B,Amazon Business,11/10/2023,RS153524,19.23,0.00,"BauTangLe Laptop-Stand-Adjustable-Holder-Portable-Riser-for-Macbook-Desk, Upgraded Sturdy Laptop(10``-15.6``) Stand, for i(Mac) / Laptop/Notebook/Tablet/Smartphone.",Computer Stationery and Consumables
Wyre Council,http://opendatacommunities.org/doc/district-council/wyre,30/10/2023,Resources,Support Services,135B,Amazon Business,11/10/2023,RS153560,5.82,0.00,Yizhet 1 pair Round Ear Pads 60mm Universal Replacement Earpads Premium Protein Leather Memory Foam Ear Cushions for Headphone Ear Cup with 60mm Diameter.,Computer Stationery and Consumables
Wyre Council,http://opendatacommunities.org/doc/district-council/wyre,30/10/2023,Resources,Support Services,135B,Amazon Business,23/10/2023,RS153730,99.95,0.00,"FINTIE Shockproof Case for Samsung Galaxy Tab A8 10.5 inch 2022 Model (SM-X200/X205), Tuatara Rugged Unibody Hybrid Full Protective Bumper Kickstand Cover w/Built-in Screen Protector, Black.",Computer Stationery and Consumables
Wyre Council,http://opendatacommunities.org/doc/district-council/wyre,30/10/2023,Resources,Support Services,135B,Amazon Business,17/10/2023,RS153755,14.87,0.00,"Keyboard Wrist Rest and Mouse Pad Wrist Support 2 Pack, GEMEK Ergonomic Memory Foam Set for Office, Laptop, Mac, Computer and Gaming, Durable, Comfortable Typing &Wrist Pain Relief (Black).",Computer Stationery and Consumables
Wyre Council,http://opendatacommunities.org/doc/district-council/wyre,30/10/2023,Resources,Support Services,135B,Amazon Business,17/10/2023,RS153755,56.50,0.00,Yizhet 1 pair Round Ear Pads 65mm Universal Replacement Earpads 2.5 inch Premium Protein Leather Memory Foam Ear Cushions for Headphone Ear Cup with 6.5cm Diameter.,Computer Stationery and Consumables
Wyre Council,http://opendatacommunities.org/doc/district-council/wyre,30/10/2023,Resources,Support Services,135B,Amazon Business,17/10/2023,RS153756,133.83,0.00,"Keyboard Wrist Rest and Mouse Pad Wrist Support 2 Pack, GEMEK Ergonomic Memory Foam Set for Office, Laptop, Mac, Computer and Gaming, Durable, Comfortable Typing &Wrist Pain Relief (Black).",Computer Stationery and Consumables
Wyre Council,http://opendatacommunities.org/doc/district-council/wyre,30/10/2023,Resources,Support Services,135B,Amazon Business,09/10/2023,RS153368,18.21,0.00,"BauTangLe Laptop-Stand-Adjustable-Holder-Portable-Riser-for-Macbook-Desk, Upgraded Sturdy Laptop(10``-15.6``) Stand, for i(Mac) / Laptop/Notebook/Tablet/Smartphone.",Computer Stationery and Consumables
Wyre Council,http://opendatacommunities.org/doc/district-council/wyre,30/10/2023,Resources,Support Services,135B,Amazon Business,18/10/2023,RS153843,56.50,0.00,Yizhet 1 pair Round Ear Pads 65mm Universal Replacement Earpads 2.5 inch Premium Protein Leather Memory Foam Ear Cushions for Headphone Ear Cup with 6.5cm Diameter.,Computer Stationery and Consumables
Wyre Council,http://opendatacommunities.org/doc/district-council/wyre,30/10/2023,Resources,Support Services,135B,Amazon Business,25/10/2023,RS153917,22.98,0.00,"BauTangLe Laptop-Stand-Adjustable-Holder-Portable-Riser-for-Macbook-Desk, Upgraded Sturdy Laptop(10``-15.6``) Stand, for i(Mac) / Laptop/Notebook/Tablet/Smartphone.",Computer Stationery and Consumables
Wyre Council,http://opendatacommunities.org/doc/district-council/wyre,30/10/2023,Resources,Support Services,135B,Amazon Business,04/10/2023,RS153351,30.24,0.00,TECKNET Mouse Mat with Memory Foam Rest -Non-slip Rubber base- Special-Textured Water-Resistant Surface.,Computer Stationery and Consumables
Wyre Council,http://opendatacommunities.org/doc/district-council/wyre,30/10/2023,Resources,Support Services,135B,Amazon Business,04/10/2023,RS153343,70.56,0.00,TECKNET Mouse Mat with Memory Foam Rest -Non-slip Rubber base- Special-Textured Water-Resistant Surface.,Computer Stationery and Consumables
Wyre Council,http://opendatacommunities.org/doc/district-council/wyre,30/10/2023,Resources,Support Services,135B,Amazon Business,06/10/2023,RS153356,67.20,0.00,TECKNET Mouse Mat with Memory Foam Rest -Non-slip Rubber base- Special-Textured Water-Resistant Surface.,Computer Stationery and Consumables
Wyre Council,http://opendatacommunities.org/doc/district-council/wyre,30/10/2023,People and Places,Support Services,135B,Lancashire County Council,31/10/2023,PE153478,2100.00,0.00,LCC Estates Support for 18/09 to 18/10/23,Consultants Fees
Wyre Council,http://opendatacommunities.org/doc/district-council/wyre,30/10/2023,Resources,Corporate and Democratic Core,131A,Link Treasury Services LTD,09/10/2023,RS153386,4125.00,0.00,Treasury Services for the period 01/10/2023 to 31/03/2024,Consultants Fees
Wyre Council,http://opendatacommunities.org/doc/district-council/wyre,30/10/2023,Resources,Central Services to the Public,131C,Inform CPI,23/10/2023,RS153299,5400.00,0.00,"RE; PM Groundworks High View, Sower Carr Lane, HAmbletonm FY6 9DJ (BA REf N0030032001502B)",Consultants Fees
Wyre Council,http://opendatacommunities.org/doc/district-council/wyre,30/10/2023,Resources,Support Services,135B,MAINTEL EUROPE LTD,26/10/2023,RS154054,1765.01,0.00,3 Months Reasonable endeavours support for Mitel 3300 and related servers from 21/10/2023,Consultants Fees
Wyre Council,http://opendatacommunities.org/doc/district-council/wyre,30/10/2023,Resources,Support Services,135B,THE NETWORKING PEOPLE (TNP) LTD,31/10/2023,RS154155,1570.00,0.00,WiFi Survey at Poulton Civic Centre,Consultants Fees
Wyre Council,http://opendatacommunities.org/doc/district-council/wyre,30/10/2023,Resources,Cultural and Related Services,132A,GJG Consultancy,31/10/2023,RS154136,4750.45,0.00,Staged payment - completion of parts 1 and 2 draft reviews,Consultants Fees
Wyre Council,http://opendatacommunities.org/doc/district-council/wyre,30/10/2023,Resources,Cultural and Related Services,132A,GJG Consultancy,10/10/2023,RS153437,4740.45,0.00,Initial payment for consultancy - Marine Hall options appraisal.,Consultants Fees
Wyre Council,http://opendatacommunities.org/doc/district-council/wyre,30/10/2023,People and Places,"Cultural, Environ and Planning",137B,Halcrow Group LTD,18/10/2023,PE153820,566.54,0.00,Current approved order based on agreed additional work. Authorised by Carl Green,Consultants Fees (New CCR)
Wyre Council,http://opendatacommunities.org/doc/district-council/wyre,30/10/2023,People and Places,"Cultural, Environ and Planning",137B,KEYSTONE DESIGN LTD,27/10/2023,PE154074,4200.00,0.00,"To David Hadwin,Keystone Design Associated Ltd,Development House,261 Church Street,Blackpool.FY1 3PB.Carry out precondition surveys associated with the Fleetwood satellite compound works for the Wyre Beach Management Scheme as your email pro",Consultants Fees (New CCR)
Wyre Council,http://opendatacommunities.org/doc/district-council/wyre,30/10/2023,People and Places,"Cultural, Environ and Planning",137B,MARLAN MARITIME TECHNOLOGIES LTD,12/10/2023,PE153585,5250.00,0.00,Works to provide synoptic radar monitoring at sites across NW for Eco-CoBS project.Deployment at first site Fleetwood 16 Dec 2021.Contract until 31 March 2027.,Consultants Fees (New CCR)
Wyre Council,http://opendatacommunities.org/doc/district-council/wyre,30/10/2023,People and Places,"Cultural, Environ and Planning",137B,MARLAN MARITIME TECHNOLOGIES LTD,12/10/2023,PE153595,8250.00,0.00,Works to provide synoptic radar monitoring at sites across NW for Eco-CoBS project.Deployment at first site Fleetwood 16 Dec 2021.Contract until 31 March 2027.,Consultants Fees (New CCR)
Wyre Council,http://opendatacommunities.org/doc/district-council/wyre,30/10/2023,People and Places,"Cultural, Environ and Planning",137B,Purcell Architecture Limited,05/10/2023,PE153352,16213.96,0.00,Fleetwood Market.  Additional Fees for Architect (MEP/Struct.Eng/QS +12.5% Admin Markup),Consultants Fees (New CCR)
Wyre Council,http://opendatacommunities.org/doc/district-council/wyre,30/10/2023,People and Places,"Cultural, Environ and Planning",137B,Susannah Bleakley Consulting,11/10/2023,PE153564,4525.95,0.00,ECO-CoBS Project,Consultants Fees (New CCR)
Wyre Council,http://opendatacommunities.org/doc/district-council/wyre,30/10/2023,People and Places,"Cultural, Environ and Planning",137B,Susannah Bleakley Consulting,27/10/2023,PE154065,91.25,0.00,ECO-CoBS Project,Consultants Fees (New CCR)
Wyre Council,http://opendatacommunities.org/doc/district-council/wyre,30/10/2023,People and Places,"Cultural, Environ and Planning",137B,Morecambe Bay Partnership,27/10/2023,PE154059,12221.69,0.00,Annual orderOur Future Coast 2023/24,Consultants Fees (New CCR)
Wyre Council,http://opendatacommunities.org/doc/district-council/wyre,30/10/2023,People and Places,"Cultural, Environ and Planning",137B,WSP UK Limited,19/10/2023,PE153235,3574.41,0.00,"Project Management Services Annual  Annual amount £78,000  Potentially for 4 years   Order to replace PEO0025462",Consultants Fees (New CCR)
Wyre Council,http://opendatacommunities.org/doc/district-council/wyre,30/10/2023,People and Places,"Cultural, Environ and Planning",137B,WSP UK Limited,19/10/2023,PE153119,6772.13,0.00,"Project Management Services Annual  Annual amount £78,000  Potentially for 4 years   Order to replace PEO0025462",Consultants Fees (New CCR)
Wyre Council,http://opendatacommunities.org/doc/district-council/wyre,30/10/2023,People and Places,"Cultural, Environ and Planning",137B,Leica Geosystems LTD,04/10/2023,PE153331,1298.00,0.00,Annual Smartnet Yearly Subscription Renewal.Please see quote for full technical details.1 year Smartnet NRTK Limited – 480 hours.Subscription ID: 00150-35305-00430-27604-FAA79Your Order Ref: 43027604 (article 5305732)Smartnet Username: 15035305,Contract (New CCR)
Wyre Council,http://opendatacommunities.org/doc/district-council/wyre,30/10/2023,People and Places,"Cultural, Environ and Planning",137B,Wyre Rivers Trust,16/10/2023,PE153690,10678.00,0.00,Wyre Council`s Contribution to the King George`s Phase III Project / Royles Brook Project Summer 2023.,Contract (New CCR)
Wyre Council,http://opendatacommunities.org/doc/district-council/wyre,30/10/2023,People and Places,"Cultural, Environ and Planning",137B,Chris Standeven Ltd,27/10/2023,PE154048,9100.00,0.00,"Supply and fit 9 no raised beds using 144 no treated timber sleepers 200 x 100 x 2.4m, attach black damp proof membrane to inside and fill with 48 tons of Grade 1 recycled soil.  To erect 1 no metal shed - Supplied by Wyre Council.  COST £9,100.00   vat a",Contract (New CCR)
Wyre Council,http://opendatacommunities.org/doc/district-council/wyre,30/10/2023,People and Places,"Cultural, Environ and Planning",137B,F PARKINSON LTD,12/10/2023,PE153606,105267.43,0.00,Fleetwood Market Contract Works 2023/24,Contract (New CCR)
Wyre Council,http://opendatacommunities.org/doc/district-council/wyre,30/10/2023,People and Places,"Cultural, Environ and Planning",137B,F PARKINSON LTD,12/10/2023,PE153609,2425.00,0.00,Fleetwood Market Refurbishments.  Additional Works Brought Forward into the Main Contract,Contract (New CCR)
Wyre Council,http://opendatacommunities.org/doc/district-council/wyre,30/10/2023,People and Places,"Cultural, Environ and Planning",137B,F PARKINSON LTD,12/10/2023,PE153608,11125.46,0.00,Fleetwood Market.  Annex & Associated Works,Contract (New CCR)
Wyre Council,http://opendatacommunities.org/doc/district-council/wyre,30/10/2023,People and Places,"Cultural, Environ and Planning",137B,F PARKINSON LTD,12/10/2023,PE153607,67583.51,0.00,Fleetwood Market Contract (UKSPF) - 2023/24,Contract (New CCR)
Wyre Council,http://opendatacommunities.org/doc/district-council/wyre,30/10/2023,People and Places,"Cultural, Environ and Planning",137B,Balfour Beatty Civil Engineering Ltd,17/10/2023,PE153743,935725.75,0.00,"FAO Chloe SumnerBalfour Beatty Civil Engineering LtdChaddock Lane WorsleyManchesterM28 1XYWyre Beach Management Scheme Phase 2 – Construction Works.Cost £35,601,957.69Carl Green / Mike Wilkinson",Contract (New CCR)
Wyre Council,http://opendatacommunities.org/doc/district-council/wyre,30/10/2023,People and Places,"Cultural, Environ and Planning",137B,Balfour Beatty Civil Engineering Ltd,18/10/2023,PE153742,119909.79,0.00,"FAO Chloe Sumner Balfour Beatty Civil Engineering Ltd Chaddock Lane  Worsley Manchester M28 1XY  Tel, 0161 638 0800 Chloe.Sumner@balfourbeatty.com   Wyre Beach Management Scheme Phase 1 - Construction Works.  Cost £2,687,156.94",Contract (New CCR)
Wyre Council,http://opendatacommunities.org/doc/district-council/wyre,30/10/2023,People and Places,Planning and Development Servs,132C,NABMA,31/10/2023,PE154153,650.00,0.00,nabma conference october 23,Corporate and Professional Subscriptions
Wyre Council,http://opendatacommunities.org/doc/district-council/wyre,30/10/2023,Resources,Support Services,135B,BRADLEY ENVIRONMENTAL CONSULTANTS LTD,17/10/2023,RS153723,874.81,0.00,"To deliver 2 x 1/2 day NL Asbestos Refresher Courses at our premises, Copse Road, Fleetwood FY7 6RP11 October 2023 as per booking forms",Corporate Training - Health and Safety
Wyre Council,http://opendatacommunities.org/doc/district-council/wyre,30/10/2023,Finance,Current Assets,130B,,03/10/2023,WPST00120434,21472.03,0.00,c/tax refund,Council Tax Refunds
Wyre Council,http://opendatacommunities.org/doc/district-council/wyre,30/10/2023,Finance,Current Assets,130B,,24/10/2023,WPST00122808,16977.73,0.00,20/10/2023CTAX-NNDR REFUNDS,Council Tax Refunds
Wyre Council,http://opendatacommunities.org/doc/district-council/wyre,30/10/2023,Finance,Current Assets,130B,,17/10/2023,WPST00121850,28809.81,0.00,13/10/2023CTAX-NNDR REFUNDS,Council Tax Refunds
Wyre Council,http://opendatacommunities.org/doc/district-council/wyre,30/10/2023,Finance,Current Assets,130B,,11/10/2023,WPST00121205,17687.43,0.00,06/10/2023 Ctax Refunds,Council Tax Refunds
Wyre Council,http://opendatacommunities.org/doc/district-council/wyre,30/10/2023,Finance,Current Assets,130B,,31/10/2023,WPST00123433,13196.28,0.00,27/10/23 Ctax Refunds,Council Tax Refunds
Wyre Council,http://opendatacommunities.org/doc/district-council/wyre,30/10/2023,People and Places,Cultural and Related Services,132A,Gambolling Arena Theatre Company,23/10/2023,PE153911,1350.00,0.00,For the delivery of 6 performances of Nightmare Before Christmas.3 x at Poulton Community Centre on Saturday 21st October3 x at Pilling Community Centre on Sunday 22nd OctoberTotal fee £1350,Creative People and Places Contribution
Wyre Council,http://opendatacommunities.org/doc/district-council/wyre,30/10/2023,People and Places,Cultural and Related Services,132A,EVENT MANAGEMENT AND TRAINING LTD,23/10/2023,PE153910,228.00,0.00,For the supply of 1 x medic for the Nightmare Before Christmas showsSaturday 21st October 10am - 4pm Poulton Community HallSunday 22nd October   10am - 4pm  Pilling Village hallTotal £228,Creative People and Places Contribution
Wyre Council,http://opendatacommunities.org/doc/district-council/wyre,30/10/2023,People and Places,Cultural and Related Services,132A,EVENT MANAGEMENT AND TRAINING LTD,11/10/2023,PE153572,114.00,0.00,For the provision of 1 x medic on Saturday 10th June @Stannah Country ParkBig Green Event  11am - 4pm   £114,Creative People and Places Contribution
Wyre Council,http://opendatacommunities.org/doc/district-council/wyre,30/10/2023,People and Places,Cultural and Related Services,132A,EVENT MANAGEMENT AND TRAINING LTD,11/10/2023,PE153573,114.00,0.00,For the provision of 1 medic - Saturday 15th April @ Cherestanc Square for the launch of the Walking Festival. 11am - 4pm,Creative People and Places Contribution
Wyre Council,http://opendatacommunities.org/doc/district-council/wyre,30/10/2023,People and Places,Cultural and Related Services,132A,EVENT MANAGEMENT AND TRAINING LTD,11/10/2023,PE153574,114.00,0.00,To provide 1 x medic at Fleetwood Market on Saturday 19th August between 10am and 4pm for the Summer Fun Day.Fee £114,Creative People and Places Contribution
Wyre Council,http://opendatacommunities.org/doc/district-council/wyre,30/10/2023,People and Places,Environmental Services,132B,EK Motors Factors LTD,30/10/2023,PE154101,71.86,0.00,Parts,Daywork Materials (Excl.Tyres)
Wyre Council,http://opendatacommunities.org/doc/district-council/wyre,30/10/2023,People and Places,Support Services,135B,EK Motors Factors LTD,30/10/2023,PE154098,16.96,0.00,Parts,Daywork Materials (Excl.Tyres)
Wyre Council,http://opendatacommunities.org/doc/district-council/wyre,30/10/2023,People and Places,Environmental Services,132B,EK Motors Factors LTD,30/10/2023,PE154105,11.12,0.00,Parts,Daywork Materials (Excl.Tyres)
Wyre Council,http://opendatacommunities.org/doc/district-council/wyre,30/10/2023,People and Places,Environmental Services,132B,EK Motors Factors LTD,30/10/2023,PE154102,29.84,0.00,Parts,Daywork Materials (Excl.Tyres)
Wyre Council,http://opendatacommunities.org/doc/district-council/wyre,30/10/2023,People and Places,Environmental Services,132B,EK Motors Factors LTD,30/10/2023,PE154104,259.90,0.00,Parts,Daywork Materials (Excl.Tyres)
Wyre Council,http://opendatacommunities.org/doc/district-council/wyre,30/10/2023,People and Places,Environmental Services,132B,EK Motors Factors LTD,30/10/2023,PE154103,20.14,0.00,Parts,Daywork Materials (Excl.Tyres)
Wyre Council,http://opendatacommunities.org/doc/district-council/wyre,30/10/2023,People and Places,Environmental Services,132B,EK Motors Factors LTD,30/10/2023,PE154107,81.06,0.00,Parts,Daywork Materials (Excl.Tyres)
Wyre Council,http://opendatacommunities.org/doc/district-council/wyre,30/10/2023,People and Places,Environmental Services,132B,EK Motors Factors LTD,30/10/2023,PE154110,10.40,0.00,Parts,Daywork Materials (Excl.Tyres)
Wyre Council,http://opendatacommunities.org/doc/district-council/wyre,30/10/2023,People and Places,Environmental Services,132B,EK Motors Factors LTD,30/10/2023,PE154111,5.91,0.00,Parts,Daywork Materials (Excl.Tyres)
Wyre Council,http://opendatacommunities.org/doc/district-council/wyre,30/10/2023,People and Places,Environmental Services,132B,EK Motors Factors LTD,30/10/2023,PE154108,25.74,0.00,Parts,Daywork Materials (Excl.Tyres)
Wyre Council,http://opendatacommunities.org/doc/district-council/wyre,30/10/2023,People and Places,Environmental Services,132B,EK Motors Factors LTD,30/10/2023,PE154106,146.88,0.00,Parts,Daywork Materials (Excl.Tyres)
Wyre Council,http://opendatacommunities.org/doc/district-council/wyre,30/10/2023,People and Places,Environmental Services,132B,EK Motors Factors LTD,30/10/2023,PE154109,14.39,0.00,Parts,Daywork Materials (Excl.Tyres)
Wyre Council,http://opendatacommunities.org/doc/district-council/wyre,30/10/2023,People and Places,Environmental Services,132B,Bucher Municipal Limited,27/10/2023,PE153842,405.69,0.00,Parts,Daywork Materials (Excl.Tyres)
Wyre Council,http://opendatacommunities.org/doc/district-council/wyre,30/10/2023,People and Places,Environmental Services,132B,Bucher Municipal Limited,27/10/2023,PE153323,377.74,0.00,"water pumps and nozzle trunking for V123,124+125",Daywork Materials (Excl.Tyres)
Wyre Council,http://opendatacommunities.org/doc/district-council/wyre,30/10/2023,People and Places,Environmental Services,132B,Bucher Municipal Limited,27/10/2023,PE153323,377.74,0.00,"water pumps and nozzle trunking for V123,124+125",Daywork Materials (Excl.Tyres)
Wyre Council,http://opendatacommunities.org/doc/district-council/wyre,30/10/2023,People and Places,Environmental Services,132B,Bucher Municipal Limited,27/10/2023,PE153842,405.69,0.00,Parts,Daywork Materials (Excl.Tyres)
Wyre Council,http://opendatacommunities.org/doc/district-council/wyre,30/10/2023,People and Places,Environmental Services,132B,Bucher Municipal Limited,27/10/2023,PE153323,804.69,0.00,"water pumps and nozzle trunking for V123,124+125",Daywork Materials (Excl.Tyres)
Wyre Council,http://opendatacommunities.org/doc/district-council/wyre,30/10/2023,People and Places,Environmental Services,132B,Bucher Municipal Limited,27/10/2023,PE153842,405.68,0.00,Parts,Daywork Materials (Excl.Tyres)
Wyre Council,http://opendatacommunities.org/doc/district-council/wyre,30/10/2023,People and Places,Support Services,135B,Mowerpower LTD,27/10/2023,PE153988,444.50,0.00,to supply items as per Estimate 105919 (29/09/23),Daywork Materials (Excl.Tyres)
Wyre Council,http://opendatacommunities.org/doc/district-council/wyre,30/10/2023,People and Places,Environmental Services,132B,Amazon Business,09/10/2023,PE153272,19.08,0.00,2units  -JZK6 orange LED side lights,Daywork Materials (Excl.Tyres)
Wyre Council,http://opendatacommunities.org/doc/district-council/wyre,30/10/2023,People and Places,Environmental Services,132B,Amazon Business,27/10/2023,PE153271,8.24,0.00,12-24V COB car LED interior lights,Daywork Materials (Excl.Tyres)
Wyre Council,http://opendatacommunities.org/doc/district-council/wyre,30/10/2023,People and Places,Environmental Services,132B,Amazon Business,27/10/2023,PE153863,43.50,0.00,License Plate lights,Daywork Materials (Excl.Tyres)
Wyre Council,http://opendatacommunities.org/doc/district-council/wyre,30/10/2023,People and Places,Environmental Services,132B,Amazon Business,27/10/2023,PE154067,36.25,0.00,License Plate lights,Daywork Materials (Excl.Tyres)
Wyre Council,http://opendatacommunities.org/doc/district-council/wyre,30/10/2023,People and Places,Environmental Services,132B,Amazon Business,27/10/2023,PE153863,-43.50,0.00,License Plate lights,Daywork Materials (Excl.Tyres)
Wyre Council,http://opendatacommunities.org/doc/district-council/wyre,30/10/2023,Resources,Support Services,135B,THE NETWORKING PEOPLE (TNP) LTD,20/10/2023,RS153858,944.00,0.00,"Install 1/1Gb Internet service, 5 year minimum term at Copse Rd Depo, FY7 6RP",Disaster Recovery
Wyre Council,http://opendatacommunities.org/doc/district-council/wyre,30/10/2023,Resources,Support Services,135B,THE NETWORKING PEOPLE (TNP) LTD,20/10/2023,RS153858,7394.00,0.00,"Annual Rental 1/1Gb Internet service, 5 year minimum term at Copse Rd DepotFY7 6RP - (Cost per Annum)Terms:- Subject to Survey- Minimum contract term as specified in line item- Contract will roll over at end of minimum term, 30 days cancellation",Disaster Recovery
Wyre Council,http://opendatacommunities.org/doc/district-council/wyre,30/10/2023,People and Places,Public Transport,133G,M J Wilkinson,24/10/2023,PE153977,2530.00,0.00,Hire of 30T Long Reach & JCB 714 including drivers @ Knott-end,Dredging
Wyre Council,http://opendatacommunities.org/doc/district-council/wyre,30/10/2023,People and Places,Cultural and Related Services,132A,Carlsberg UK LTD,09/10/2023,PE153317,155.23,0.00,CO2 & Mixed Gas,Drinks
Wyre Council,http://opendatacommunities.org/doc/district-council/wyre,30/10/2023,People and Places,Cultural and Related Services,132A,Carlsberg UK LTD,18/10/2023,PE153838,716.19,0.00,Bar drinks,Drinks
Wyre Council,http://opendatacommunities.org/doc/district-council/wyre,30/10/2023,People and Places,Cultural and Related Services,132A,N Power LTD,12/10/2023,PE153495,4618.66,0.00,"MPAN 2500000676813 Swimming & Fitness Centre, Breck Rd, Poulton le Fylde, FY6 7HUElectricity charges for the period 01/09/23-30/09/23 - 16239.6 KWH used",Electricity
Wyre Council,http://opendatacommunities.org/doc/district-council/wyre,30/10/2023,People and Places,Cultural and Related Services,132A,N Power LTD,12/10/2023,PE153492,1131.74,0.00,"MPAN 1600000125794 Garstang Swimming Pool, Birch Rd, R3 1WJ electricity charges for the period 01/09/23-30/09/23 - 4164.5 KWH used",Electricity
Wyre Council,http://opendatacommunities.org/doc/district-council/wyre,30/10/2023,People and Places,Cultural and Related Services,132A,N Power LTD,12/10/2023,PE153493,7379.62,0.00,"MPAN 1600000162884 Fleetwood Leisure Centre, The Esplanade, FY7 6HF Electricity charges for the perid 01/09/23-30/09/23 - 29995.7 KWH used",Electricity
Wyre Council,http://opendatacommunities.org/doc/district-council/wyre,30/10/2023,People and Places,Cultural and Related Services,132A,N Power LTD,12/10/2023,PE153494,8066.20,0.00,"MPAN 2500000793090 Thornton Leisure Centre, Victoria Rd E, FY5 3SX Electricity charges for the period 01/09/23-30/09/23 - 30091.0 KWH used",Electricity
Wyre Council,http://opendatacommunities.org/doc/district-council/wyre,30/10/2023,People and Places,Cultural and Related Services,132A,N Power LTD,12/10/2023,PE153491,797.34,0.00,"MPAN1610023220857 YMCA Garstang Leisure Centre, Windsor Rd, Garstang, PR3 1ED electricity charges for the period 01/09/23-30/09/23 - 2500.5 KWH used",Electricity
Wyre Council,http://opendatacommunities.org/doc/district-council/wyre,30/10/2023,People and Places,Environmental Services,132B,N Power LTD,11/10/2023,PE153444,395.74,0.00,1610036002846: Unmetered supply Breck Rd 01/09/23 to 30/09/23 (15% of 5131.4 kWh),Electricity
Wyre Council,http://opendatacommunities.org/doc/district-council/wyre,30/10/2023,People and Places,Environmental Services,132B,N Power LTD,11/10/2023,PE153442,0.75,0.00,1610036002855 unmetered supply Civic Centre 01/09/23 to 30/09/23 (15% of 9.7kWh),Electricity
Wyre Council,http://opendatacommunities.org/doc/district-council/wyre,30/10/2023,People and Places,Parking Services,133F,N Power LTD,11/10/2023,PE153445,666.14,0.00,1620000821031 unmetered supply lighting Civic Centre 01/09/23 to 30/09/23 (1307.1kWh),Electricity
Wyre Council,http://opendatacommunities.org/doc/district-council/wyre,30/10/2023,People and Places,Parking Services,133F,N Power LTD,11/10/2023,PE153444,2219.38,0.00,1610036002846: Unmetered supply Breck Rd 01/09/23 to 30/09/23 (85% of 5131.4kW),Electricity
Wyre Council,http://opendatacommunities.org/doc/district-council/wyre,30/10/2023,People and Places,Parking Services,133F,N Power LTD,11/10/2023,PE153442,4.12,0.00,1610036002855 unmetered supply Civic Centre 01/09/23 to 30/09/23 (85% of 9.7kWh,Electricity
Wyre Council,http://opendatacommunities.org/doc/district-council/wyre,30/10/2023,People and Places,Parking Services,133F,N Power LTD,11/10/2023,PE153442,0.08,0.00,1610036002855 unmetered supply Civic Centre 01/09/23 to 30/09/23 CCL,Electricity
Wyre Council,http://opendatacommunities.org/doc/district-council/wyre,30/10/2023,People and Places,Environmental Services,132B,Corona Energy Retail 4 Limited,24/10/2023,PE153470,211.74,0.00,1600000023675 Royles Brook Pumping Station  Off Victoria Road East Thornton FY55OX 01/09/23 to 30/09/23 (579kWh),Electricity
Wyre Council,http://opendatacommunities.org/doc/district-council/wyre,30/10/2023,People and Places,Planning and Development Servs,132C,Corona Energy Retail 4 Limited,24/10/2023,PE153475,2071.98,0.00,1640000184606 Council Depot Copse Road  Fleetwood FY76RP 01/09/23 to 30/09/23 (5607kWh),Electricity
Wyre Council,http://opendatacommunities.org/doc/district-council/wyre,30/10/2023,People and Places,Cultural and Related Services,132A,Corona Energy Retail 4 Limited,24/10/2023,PE153471,212.23,0.00,1640000233705 Coastal Observation Point  Rossal Point Fleetwood FY78AF 01/09/23 to 30/09/23 (544kWh),Electricity
Wyre Council,http://opendatacommunities.org/doc/district-council/wyre,30/10/2023,People and Places,Cultural and Related Services,132A,Corona Energy Retail 4 Limited,24/10/2023,PE153474,1979.84,0.00,1630000670291 Promendae Cafe North  Promenade Thornton-Cleveleys FY51DB 01/09/23 to 30/09/23 (5526kWh),Electricity
Wyre Council,http://opendatacommunities.org/doc/district-council/wyre,30/10/2023,People and Places,Cultural and Related Services,132A,Corona Energy Retail 4 Limited,24/10/2023,PE153472,4487.72,0.00,1600000162875 Marine Hall The Esplanade  Fleetwood FY76HF 01/09/23 to 30/09/23 (9119kWh),Electricity
Wyre Council,http://opendatacommunities.org/doc/district-council/wyre,30/10/2023,People and Places,Planning and Development Servs,132C,Corona Energy Retail 4 Limited,24/10/2023,PE153476,804.01,0.00,1620000784666 Main Hall Adelaide Street  Fleetwood FY76AB 01/09/23 to 30/09/23 (0kWh),Electricity
Wyre Council,http://opendatacommunities.org/doc/district-council/wyre,30/10/2023,People and Places,Support Services,135B,Corona Energy Retail 4 Limited,24/10/2023,PE153473,10784.32,0.00,1600000162857 Civic Centre Breck Road  Blackpool FY39DT 01/09/23 to 30/09/23 (28236kWh),Electricity
Wyre Council,http://opendatacommunities.org/doc/district-council/wyre,30/10/2023,People and Places,Cultural and Related Services,132A,Andrew Signs LTD,03/10/2023,PE153313,246.00,0.00,payment for goods already received and invoiced on INV-1526,Emergency Telephones
Wyre Council,http://opendatacommunities.org/doc/district-council/wyre,30/10/2023,People and Places,Cultural and Related Services,132A,I C BRINDLE AND CO LTD,12/10/2023,PE153586,1006.20,0.00,3 number premium lifebuoy sets with doors and 30 in. belt/rope . No posts required,Emergency Telephones
Wyre Council,http://opendatacommunities.org/doc/district-council/wyre,30/10/2023,People and Places,Cultural and Related Services,132A,I C BRINDLE AND CO LTD,12/10/2023,PE153586,74.52,0.00,Shipping and handling,Emergency Telephones
Wyre Council,http://opendatacommunities.org/doc/district-council/wyre,30/10/2023,People and Places,Planning and Development Servs,132C,Gag Reflex ltd,24/10/2023,PE153919,1222.50,0.00,Entertainment for the WBA 2023 - Steve Royle,Event Hospitality
Wyre Council,http://opendatacommunities.org/doc/district-council/wyre,30/10/2023,People and Places,Planning and Development Servs,132C,EPH Creative Ltd,27/10/2023,PE154080,1265.00,0.00,Wyre Business Awards 2023. Props. ALC85 8ft Toadstool at £195ALC86 6ft Toadstool at £160 ALC87 5th Toadstool at £130 ENT61 Factory Gates at £435 SN8635 Giant Gingerbread Boy at £105 Delivery and Collection at £240,Event Hospitality
Wyre Council,http://opendatacommunities.org/doc/district-council/wyre,30/10/2023,People and Places,Cultural and Related Services,132A,Lancashire County Council,16/10/2023,PE153719,60.50,0.00,Payments for Hire of Meeting Room at Garstang Library  Ref- 01.1530177.26203.00.000000        Inv. No. 1530177WBC-923,External Contractor
Wyre Council,http://opendatacommunities.org/doc/district-council/wyre,30/10/2023,People and Places,Environmental Services,132B,NWIFCA      N W Inshore Fisheries and Conservation,27/10/2023,PE153569,623.00,0.00,Shellfish Collections sept 23- Mar24,Food and Drug Etc Samples
Wyre Council,http://opendatacommunities.org/doc/district-council/wyre,30/10/2023,People and Places,Support Services,135B,Allstar Business Solutions LTD,24/10/2023,PE153731,157.00,0.00,Fuel to 12/10/23,Fuel
Wyre Council,http://opendatacommunities.org/doc/district-council/wyre,30/10/2023,People and Places,Support Services,135B,Allstar Business Solutions LTD,24/10/2023,PE153731,130.24,0.00,Fuel to 12/10/23,Fuel
Wyre Council,http://opendatacommunities.org/doc/district-council/wyre,30/10/2023,People and Places,Support Services,135B,Allstar Business Solutions LTD,11/10/2023,PE153310,197.87,0.00,Fuel to 29/09/23,Fuel
Wyre Council,http://opendatacommunities.org/doc/district-council/wyre,30/10/2023,People and Places,Support Services,135B,Allstar Business Solutions LTD,11/10/2023,PE153310,200.07,0.00,Fuel to 29/09/23,Fuel
Wyre Council,http://opendatacommunities.org/doc/district-council/wyre,30/10/2023,People and Places,Planning and Development Servs,132C,British Gas,27/10/2023,PE153983,50.14,0.00,"603764150 - Copse Road, Copse Road  Depot 01/09/23 to 30/09/23",Gas
Wyre Council,http://opendatacommunities.org/doc/district-council/wyre,30/10/2023,People and Places,Cultural and Related Services,132A,British Gas,27/10/2023,PE153983,189.35,0.00,"603764149 - Victoria Road East, Thornton  Little Theatre 31/08/23 to  07/10/23",Gas
Wyre Council,http://opendatacommunities.org/doc/district-council/wyre,30/10/2023,People and Places,Planning and Development Servs,132C,British Gas,27/10/2023,PE153983,582.05,0.00,"603764162 - Adelaide Street, Wyre  Borough Council 01/09/23 to  03/10/23",Gas
Wyre Council,http://opendatacommunities.org/doc/district-council/wyre,30/10/2023,People and Places,Support Services,135B,British Gas,27/10/2023,PE153983,1584.28,0.00,"603764151 - Wyre Borough Council,  Wyre Civic Centre 01/09/23 to  30/09/23",Gas
Wyre Council,http://opendatacommunities.org/doc/district-council/wyre,30/10/2023,Resources,Support Services,135B,Konica Minolta Business Solutions UK LTD,20/10/2023,RS152422,1246.01,0.00,Copy and print charges Equipment numb,Hire of Tools or Equipment
Wyre Council,http://opendatacommunities.org/doc/district-council/wyre,30/10/2023,Resources,Central Services to the Public,131C,Huggg Limited,31/10/2023,RS154137,5000.00,0.00,HG-4e95c10e Top Up Huggg,Household Support Fund
Wyre Council,http://opendatacommunities.org/doc/district-council/wyre,30/10/2023,People and Places,Environmental Services,132B,Poulton Pets LTD,11/10/2023,PE153563,1407.00,0.00,Provision of stray dog kennelling service 2023/24,Impounded Dogs Costs
Wyre Council,http://opendatacommunities.org/doc/district-council/wyre,30/10/2023,Resources,Support Services,135B,Daisy Communications LTD,23/10/2023,RS153398,80.86,0.00,Services Charges 01/10/23-31/10/41,Internet and Telephone Charges
Wyre Council,http://opendatacommunities.org/doc/district-council/wyre,30/10/2023,Resources,Cultural and Related Services,132A,Daisy Communications LTD,23/10/2023,RS153398,13.87,0.00,Services Charges 01/10/23-31/10/33,Internet and Telephone Charges
Wyre Council,http://opendatacommunities.org/doc/district-council/wyre,30/10/2023,Resources,Cultural and Related Services,132A,Daisy Communications LTD,23/10/2023,RS153398,33.25,0.00,Services Charges 01/10/23-31/10/28,Internet and Telephone Charges
Wyre Council,http://opendatacommunities.org/doc/district-council/wyre,30/10/2023,Resources,Corporate and Democratic Core,131A,Daisy Communications LTD,23/10/2023,RS153398,13.87,0.00,Services Charges 01/10/23-31/10/23,Internet and Telephone Charges
Wyre Council,http://opendatacommunities.org/doc/district-council/wyre,30/10/2023,Resources,Support Services,135B,Daisy Communications LTD,23/10/2023,RS153398,19.39,0.00,Services Charges 01/10/23-31/10/42,Internet and Telephone Charges
Wyre Council,http://opendatacommunities.org/doc/district-council/wyre,30/10/2023,People and Places,Cultural and Related Services,132A,Northern Citrus Products LTD,10/10/2023,PE153458,343.67,0.00,Kiosk stock June 23,Kiosk stock
Wyre Council,http://opendatacommunities.org/doc/district-council/wyre,30/10/2023,People and Places,Cultural and Related Services,132A,Northern Citrus Products LTD,10/10/2023,PE153459,42.00,0.00,Kiosk stock July 23,Kiosk stock
Wyre Council,http://opendatacommunities.org/doc/district-council/wyre,30/10/2023,People and Places,Cultural and Related Services,132A,Northern Citrus Products LTD,10/10/2023,PE153457,103.38,0.00,Kiosk stock,Kiosk stock
Wyre Council,http://opendatacommunities.org/doc/district-council/wyre,30/10/2023,People and Places,Cultural and Related Services,132A,Northern Citrus Products LTD,10/10/2023,PE153460,688.82,0.00,Kiosk stock Aug 23,Kiosk stock
Wyre Council,http://opendatacommunities.org/doc/district-council/wyre,30/10/2023,Finance,Support Services,135B,,03/10/2023,WPST00120449,10000.00,0.00,Legal Costs,Legal Fees
Wyre Council,http://opendatacommunities.org/doc/district-council/wyre,30/10/2023,Resources,Planning and Development Servs,132C,Kings Chambers,18/10/2023,RS153833,1200.00,0.00,"Legal advice The Cube, Breck Road, Poulton Le Fylde Enforcment 22/00071/NOCOMP (appeal) - Philp Robson",Legal Fees
Wyre Council,http://opendatacommunities.org/doc/district-council/wyre,30/10/2023,Resources,Support Services,135B,Forbes Solicitors,11/10/2023,RS153530,10235.00,0.00,Professional FeesCost from 26.8.23 to 26.9.23,Legal Fees
Wyre Council,http://opendatacommunities.org/doc/district-council/wyre,30/10/2023,Resources,Support Services,135B,Forbes Solicitors,10/10/2023,RS153448,1636.50,0.00,Employment advice 26.08.23 - 26.09.23,Legal Fees
Wyre Council,http://opendatacommunities.org/doc/district-council/wyre,30/10/2023,Resources,Support Services,135B,Garry Payne,12/10/2023,RS153589,618.15,0.00,Consultancy Services for Employment Tribunal,Legal Fees
Wyre Council,http://opendatacommunities.org/doc/district-council/wyre,30/10/2023,People and Places,Planning and Development Servs,132C,Terence Barker LTD,26/10/2023,PE154057,702.11,0.00, for 12 month contract agreement for the support and sim services for Wyre Council fuelling system .comp. 12 months sim card rental @£341.27  &  12 month support @£360.84,Maintenance of Tools or Equipment
Wyre Council,http://opendatacommunities.org/doc/district-council/wyre,30/10/2023,People and Places,Highways,133B,T-Fer Tree Surgeons,10/10/2023,PE153402,260.00,0.00,"quote 006 25/07/23 86 Arundel drive, CarltonWhitebeam- remove tree and stump£260Total net amount £260                           VAT @ 20% £0                                                     Quote total   £260",Maintenance of Trees and Shrubs
Wyre Council,http://opendatacommunities.org/doc/district-council/wyre,30/10/2023,People and Places,Support Services,135B,Andrew Signs LTD,13/10/2023,PE153624,43.50,0.00,VARIUOS SIGNS - SEPTEMBER AS PER INV 1537,Materials and Consumables
Wyre Council,http://opendatacommunities.org/doc/district-council/wyre,30/10/2023,People and Places,Support Services,135B,DLF Seeds LTD,27/10/2023,PE153922,608.80,0.00,Supply and deliver 4 20kg bags of PM 10  @ 7.61 per kg delivered   Delivery to:- Wyre Council Copse Road Depot Copse Rd Fleetwood Lancashire FY7 6RP,Materials and Consumables
Wyre Council,http://opendatacommunities.org/doc/district-council/wyre,30/10/2023,People and Places,Support Services,135B,EK Motors Factors LTD,30/10/2023,PE154100,2.90,0.00,Parts,Materials and Consumables
Wyre Council,http://opendatacommunities.org/doc/district-council/wyre,30/10/2023,People and Places,Support Services,135B,EK Motors Factors LTD,30/10/2023,PE154099,82.68,0.00,Parts,Materials and Consumables
Wyre Council,http://opendatacommunities.org/doc/district-council/wyre,30/10/2023,People and Places,Support Services,135B,Key Engineering & Hygiene Supplies LTD,17/10/2023,PE153760,135.30,0.00,"Supply and deliver 10 PACKS WASY150B - 852438BLUE 2-PLY CENTREFEED ROLLS 150MX175MM417SHEETS @ £13.53 PER PACK DELIVERY TO WYRE COUNCIL, COPSE ROAD DEPOT, COPSE ROAD, FLEETWOOD, FY7 6RP",Materials and Consumables
Wyre Council,http://opendatacommunities.org/doc/district-council/wyre,30/10/2023,People and Places,Environmental Services,132B, Travis Perkins Trading CO LTD,24/10/2023,PE153672,1456.00,0.00,56 bags QC6,Materials and Consumables
Wyre Council,http://opendatacommunities.org/doc/district-council/wyre,30/10/2023,People and Places,Support Services,135B,Agrovista UK LTD,27/10/2023,PE153986,1536.35,0.00,"8 pallets (360 bags) topdressing @ £3.80 per bag. 15 bags of Naturelle Micro 5-0-25 a/w fertiliser @ £31.25 per bag 8 x bottles of Roundup ProActive @ £58.85 per 5L 40 x bags bullet lawn sand @14.90   NB: Top-dressing will be taken off the lorry, using Wy",Materials and Consumables
Wyre Council,http://opendatacommunities.org/doc/district-council/wyre,30/10/2023,People and Places,Support Services,135B,Agrovista UK LTD,25/10/2023,PE154023,1368.00,0.00,"8 pallets (360 bags) topdressing @ £3.80 per bag.15 bags of Naturelle Micro 5-0-25 a/w fertiliser @ £31.25 per bag8 x bottles of Roundup ProActive @ £58.85 per 5L40 x bags bullet lawn sand @14.90 NB: Top-dressing will be taken off the lorry, usi",Materials and Consumables
Wyre Council,http://opendatacommunities.org/doc/district-council/wyre,30/10/2023,People and Places,Environmental Services,132B,Aitch Tools & Fasteners LTD,03/10/2023,PE153309,778.32,0.00,various items -  as detailed in Julys Invoice,Materials and Consumables
Wyre Council,http://opendatacommunities.org/doc/district-council/wyre,30/10/2023,People and Places,Environmental Services,132B,Aitch Tools & Fasteners LTD,03/10/2023,PE153308,622.90,0.00,items detailed on august invoice,Materials and Consumables
Wyre Council,http://opendatacommunities.org/doc/district-council/wyre,30/10/2023,People and Places,Cultural and Related Services,132A,Mowerpower LTD,19/10/2023,PE153857,110.93,0.00,1x 20ltr Chainsaw Oil - £60.002x Stihl Chainsaw chains - £30.671x 43m of Strimmer cord - £20.26,Materials and Consumables
Wyre Council,http://opendatacommunities.org/doc/district-council/wyre,30/10/2023,People and Places,Environmental Services,132B,HUWS GRAY LTD,27/10/2023,PE154081,158.72,0.00,2023/2024 Direct Works/ Sea Wall Engineer purchases for works around the Borough,Materials and Consumables
Wyre Council,http://opendatacommunities.org/doc/district-council/wyre,30/10/2023,People and Places,Environmental Services,132B,HUWS GRAY LTD,27/10/2023,PE153990,130.52,0.00,2023/2024 Direct Works/ Sea Wall Engineer purchases for works around the Borough,Materials and Consumables
Wyre Council,http://opendatacommunities.org/doc/district-council/wyre,30/10/2023,People and Places,Environmental Services,132B,HUWS GRAY LTD,27/10/2023,PE153384,68.16,0.00,2023/2024 Direct Works/ Sea Wall Engineer purchases for works around the Borough,Materials and Consumables
Wyre Council,http://opendatacommunities.org/doc/district-council/wyre,30/10/2023,People and Places,Cultural and Related Services,132A,HUWS GRAY LTD,04/10/2023,PE153350,35.74,0.00,1 ton mot dressing (WECP stage),Materials and Consumables
Wyre Council,http://opendatacommunities.org/doc/district-council/wyre,30/10/2023,People and Places,Environmental Services,132B,HUWS GRAY LTD,26/10/2023,PE154025,9.36,0.00,2023/2024 Direct Works/ Sea Wall Engineer purchases for works around the Borough,Materials and Consumables
Wyre Council,http://opendatacommunities.org/doc/district-council/wyre,30/10/2023,People and Places,Environmental Services,132B,HUWS GRAY LTD,26/10/2023,PE154024,95.28,0.00,2023/2024 Direct Works/ Sea Wall Engineer purchases for works around the Borough,Materials and Consumables
Wyre Council,http://opendatacommunities.org/doc/district-council/wyre,30/10/2023,People and Places,Cultural and Related Services,132A,HUWS GRAY LTD,13/10/2023,PE153636,61.63,0.00,Cutting disks and tape measures,Materials and Consumables
Wyre Council,http://opendatacommunities.org/doc/district-council/wyre,30/10/2023,People and Places,Environmental Services,132B,HUWS GRAY LTD,09/10/2023,PE153383,255.76,0.00,2023/2024 Direct Works/ Sea Wall Engineer purchases for works around the Borough,Materials and Consumables
Wyre Council,http://opendatacommunities.org/doc/district-council/wyre,30/10/2023,People and Places,Environmental Services,132B,HUWS GRAY LTD,09/10/2023,PE153382,300.76,0.00,2023/2024 Direct Works/ Sea Wall Engineer purchases for works around the Borough,Materials and Consumables
Wyre Council,http://opendatacommunities.org/doc/district-council/wyre,30/10/2023,People and Places,Environmental Services,132B,HUWS GRAY LTD,09/10/2023,PE153362,141.05,0.00,2023/2024 Direct Works/ Sea Wall Engineer purchases for works around the Borough,Materials and Consumables
Wyre Council,http://opendatacommunities.org/doc/district-council/wyre,30/10/2023,People and Places,Support Services,135B,HUWS GRAY LTD,18/10/2023,PE153747,53.96,0.00,Materials Keith Urwin,Materials and Consumables
Wyre Council,http://opendatacommunities.org/doc/district-council/wyre,30/10/2023,People and Places,Support Services,135B,HUWS GRAY LTD,18/10/2023,PE153746,43.11,0.00,Materials  Keith urwin,Materials and Consumables
Wyre Council,http://opendatacommunities.org/doc/district-council/wyre,30/10/2023,People and Places,Support Services,135B,HUWS GRAY LTD,18/10/2023,PE153628,188.31,0.00,Materials  Keith Urwin,Materials and Consumables
Wyre Council,http://opendatacommunities.org/doc/district-council/wyre,30/10/2023,People and Places,Support Services,135B,HUWS GRAY LTD,18/10/2023,PE153349,36.44,0.00,Bolt cutters Keith urwin,Materials and Consumables
Wyre Council,http://opendatacommunities.org/doc/district-council/wyre,30/10/2023,Resources,Housing General Fund,134A,HUWS GRAY LTD,16/10/2023,RS153656,14.34,0.00,payment of invoice IF483078,Materials and Consumables
Wyre Council,http://opendatacommunities.org/doc/district-council/wyre,30/10/2023,People and Places,Support Services,135B,Amazon Business,16/10/2023,PE153650,31.33,0.00,bags,Materials and Consumables
Wyre Council,http://opendatacommunities.org/doc/district-council/wyre,30/10/2023,Resources,Support Services,135B,Amazon Business,11/10/2023,RS153560,4.99,0.00,"150 Pcs Cable Ties, ZYNERY Reusable Cable Tidy Adjustable Releasable Hook and Loop Cable Straps Wraps, Velcro Cable Ties for Home Office PC Cable Management.",Materials and Consumables
Wyre Council,http://opendatacommunities.org/doc/district-council/wyre,30/10/2023,Resources,Support Services,135B,Amazon Business,11/10/2023,RS153560,10.20,0.00,"Blooven Hook and Loop Strip Tape 8 Meter Self Adhesive Sticky Back Fastening Tape 20mm Wide (20mm x 8m, Black).",Materials and Consumables
Wyre Council,http://opendatacommunities.org/doc/district-council/wyre,30/10/2023,People and Places,Support Services,135B,Amazon Business,17/10/2023,PE153758,22.49,0.00,wall mounted holders,Materials and Consumables
Wyre Council,http://opendatacommunities.org/doc/district-council/wyre,30/10/2023,Resources,Support Services,135B,Amazon Business,09/10/2023,RS153374,22.14,0.00,Brother 12 mm Tape - Black/White.,Materials and Consumables
Wyre Council,http://opendatacommunities.org/doc/district-council/wyre,30/10/2023,Resources,Support Services,135B,Amazon Business,12/10/2023,RS153596,77.90,0.00,"Double Dragon, 100 Premium Blank White PVC Cards, CR80, 30Mil (760 micron), Plastic ID Card, Suitable for Zebra Magicard Evolis Fargo Datacard NiSCA ID Card Printer; 104523-111; NOT for Inkjet Printer.",Materials and Consumables
Wyre Council,http://opendatacommunities.org/doc/district-council/wyre,30/10/2023,Resources,Support Services,135B,Amazon Business,18/10/2023,RS153751,4.17,0.00,Gorilla Super Glue 15g.,Materials and Consumables
Wyre Council,http://opendatacommunities.org/doc/district-council/wyre,30/10/2023,People and Places,Support Services,135B,Amazon Business,31/10/2023,PE154124,39.66,0.00,1 x oil filled radiator  7 fin - for Vic park brew room to replace the existing broken one,Materials and Consumables
Wyre Council,http://opendatacommunities.org/doc/district-council/wyre,30/10/2023,People and Places,Support Services,135B,Logistics UK,30/10/2023,PE152939,1375.00,0.00,Public Service Membership,Membership Fees
Wyre Council,http://opendatacommunities.org/doc/district-council/wyre,30/10/2023,Resources,Housing General Fund,134A,Mobility Care Services,25/10/2023,RS153976,133.00,0.00,REDACT,Minor Adaptations
Wyre Council,http://opendatacommunities.org/doc/district-council/wyre,30/10/2023,Resources,Housing General Fund,134A,Mobility Care Services,25/10/2023,RS153975,308.00,0.00,REDACT,Minor Adaptations
Wyre Council,http://opendatacommunities.org/doc/district-council/wyre,30/10/2023,Resources,Housing General Fund,134A,Mobility Care Services,25/10/2023,RS153974,688.00,0.00,REDACT,Minor Adaptations
Wyre Council,http://opendatacommunities.org/doc/district-council/wyre,30/10/2023,Resources,Housing General Fund,134A,Mobility Care Services,25/10/2023,RS153973,154.00,0.00,REDACT,Minor Adaptations
Wyre Council,http://opendatacommunities.org/doc/district-council/wyre,30/10/2023,Resources,Housing General Fund,134A,Mobility Care Services,25/10/2023,RS153972,420.00,0.00,REDACT,Minor Adaptations
Wyre Council,http://opendatacommunities.org/doc/district-council/wyre,30/10/2023,Resources,Housing General Fund,134A,Mobility Care Services,10/10/2023,RS153461,420.00,0.00,REDACT,Minor Adaptations
Wyre Council,http://opendatacommunities.org/doc/district-council/wyre,30/10/2023,Resources,Housing General Fund,134A,Mobility Care Services,10/10/2023,RS153463,166.00,0.00,REDACT,Minor Adaptations
Wyre Council,http://opendatacommunities.org/doc/district-council/wyre,30/10/2023,Resources,Housing General Fund,134A,Mobility Care Services,10/10/2023,RS153462,688.00,0.00,REDACT,Minor Adaptations
Wyre Council,http://opendatacommunities.org/doc/district-council/wyre,30/10/2023,Resources,Housing General Fund,134A,Mobility Care Services,10/10/2023,RS153464,166.00,0.00,REDACT,Minor Adaptations
Wyre Council,http://opendatacommunities.org/doc/district-council/wyre,30/10/2023,Resources,Housing General Fund,134A,J A DICKENS LIMITED,11/10/2023,RS153537,83.00,0.00,REDACT,Minor Adaptations
Wyre Council,http://opendatacommunities.org/doc/district-council/wyre,30/10/2023,Resources,Housing General Fund,134A,J A DICKENS LIMITED,11/10/2023,RS153537,50.00,0.00,REDACT,Minor Adaptations
Wyre Council,http://opendatacommunities.org/doc/district-council/wyre,30/10/2023,Resources,Housing General Fund,134A,J A DICKENS LIMITED,11/10/2023,RS153538,94.00,0.00,REDACT,Minor Adaptations
Wyre Council,http://opendatacommunities.org/doc/district-council/wyre,30/10/2023,Resources,Housing General Fund,134A,J A DICKENS LIMITED,11/10/2023,RS153538,60.00,0.00,REDACT,Minor Adaptations
Wyre Council,http://opendatacommunities.org/doc/district-council/wyre,30/10/2023,Resources,Housing General Fund,134A,J A DICKENS LIMITED,11/10/2023,RS153542,150.00,0.00,REDACT,Minor Adaptations
Wyre Council,http://opendatacommunities.org/doc/district-council/wyre,30/10/2023,Resources,Housing General Fund,134A,J A DICKENS LIMITED,11/10/2023,RS153542,158.00,0.00,REDACT,Minor Adaptations
Wyre Council,http://opendatacommunities.org/doc/district-council/wyre,30/10/2023,Resources,Housing General Fund,134A,J A DICKENS LIMITED,11/10/2023,RS153543,280.00,0.00,REDACT,Minor Adaptations
Wyre Council,http://opendatacommunities.org/doc/district-council/wyre,30/10/2023,Resources,Housing General Fund,134A,J A DICKENS LIMITED,11/10/2023,RS153543,300.00,0.00,REDACT,Minor Adaptations
Wyre Council,http://opendatacommunities.org/doc/district-council/wyre,30/10/2023,Resources,Housing General Fund,134A,J A DICKENS LIMITED,11/10/2023,RS153546,240.00,0.00,REDACT,Minor Adaptations
Wyre Council,http://opendatacommunities.org/doc/district-council/wyre,30/10/2023,Resources,Housing General Fund,134A,J A DICKENS LIMITED,11/10/2023,RS153546,180.00,0.00,REDACT,Minor Adaptations
Wyre Council,http://opendatacommunities.org/doc/district-council/wyre,30/10/2023,Resources,Housing General Fund,134A,J A DICKENS LIMITED,11/10/2023,RS153544,320.00,0.00,REDACT,Minor Adaptations
Wyre Council,http://opendatacommunities.org/doc/district-council/wyre,30/10/2023,Resources,Housing General Fund,134A,J A DICKENS LIMITED,11/10/2023,RS153544,300.00,0.00,REDACT,Minor Adaptations
Wyre Council,http://opendatacommunities.org/doc/district-council/wyre,30/10/2023,Resources,Housing General Fund,134A,J A DICKENS LIMITED,11/10/2023,RS153545,300.00,0.00,REDACT,Minor Adaptations
Wyre Council,http://opendatacommunities.org/doc/district-council/wyre,30/10/2023,Resources,Housing General Fund,134A,J A DICKENS LIMITED,11/10/2023,RS153545,330.00,0.00,REDACT,Minor Adaptations
Wyre Council,http://opendatacommunities.org/doc/district-council/wyre,30/10/2023,Resources,Housing General Fund,134A,J A DICKENS LIMITED,11/10/2023,RS153539,84.00,0.00,REDACT,Minor Adaptations
Wyre Council,http://opendatacommunities.org/doc/district-council/wyre,30/10/2023,Resources,Housing General Fund,134A,J A DICKENS LIMITED,11/10/2023,RS153539,70.00,0.00,REDACT,Minor Adaptations
Wyre Council,http://opendatacommunities.org/doc/district-council/wyre,30/10/2023,Resources,Housing General Fund,134A,J A DICKENS LIMITED,11/10/2023,RS153540,100.00,0.00,REDACT,Minor Adaptations
Wyre Council,http://opendatacommunities.org/doc/district-council/wyre,30/10/2023,Resources,Housing General Fund,134A,J A DICKENS LIMITED,11/10/2023,RS153540,54.00,0.00,REDACT,Minor Adaptations
Wyre Council,http://opendatacommunities.org/doc/district-council/wyre,30/10/2023,Resources,Housing General Fund,134A,J A DICKENS LIMITED,11/10/2023,RS153541,138.00,0.00,REDACT,Minor Adaptations
Wyre Council,http://opendatacommunities.org/doc/district-council/wyre,30/10/2023,Resources,Housing General Fund,134A,J A DICKENS LIMITED,11/10/2023,RS153541,170.00,0.00,REDACT,Minor Adaptations
Wyre Council,http://opendatacommunities.org/doc/district-council/wyre,30/10/2023,Resources,Housing General Fund,134A,J A DICKENS LIMITED,24/10/2023,RS153933,90.00,0.00,REDACT,Minor Adaptations
Wyre Council,http://opendatacommunities.org/doc/district-council/wyre,30/10/2023,Resources,Housing General Fund,134A,J A DICKENS LIMITED,24/10/2023,RS153933,64.00,0.00,REDACT,Minor Adaptations
Wyre Council,http://opendatacommunities.org/doc/district-council/wyre,30/10/2023,Resources,Housing General Fund,134A,J A DICKENS LIMITED,24/10/2023,RS153934,90.00,0.00,REDACT,Minor Adaptations
Wyre Council,http://opendatacommunities.org/doc/district-council/wyre,30/10/2023,Resources,Housing General Fund,134A,J A DICKENS LIMITED,24/10/2023,RS153934,64.00,0.00,REDACT,Minor Adaptations
Wyre Council,http://opendatacommunities.org/doc/district-council/wyre,30/10/2023,Resources,Housing General Fund,134A,J A DICKENS LIMITED,24/10/2023,RS153935,190.00,0.00,REDACT,Minor Adaptations
Wyre Council,http://opendatacommunities.org/doc/district-council/wyre,30/10/2023,Resources,Housing General Fund,134A,J A DICKENS LIMITED,24/10/2023,RS153935,118.00,0.00,REDACT,Minor Adaptations
Wyre Council,http://opendatacommunities.org/doc/district-council/wyre,30/10/2023,Resources,Housing General Fund,134A,J A DICKENS LIMITED,24/10/2023,RS153936,280.00,0.00,REDACT,Minor Adaptations
Wyre Council,http://opendatacommunities.org/doc/district-council/wyre,30/10/2023,Resources,Housing General Fund,134A,J A DICKENS LIMITED,24/10/2023,RS153936,110.00,0.00,REDACT,Minor Adaptations
Wyre Council,http://opendatacommunities.org/doc/district-council/wyre,30/10/2023,Resources,Housing General Fund,134A,J A DICKENS LIMITED,24/10/2023,RS153937,188.00,0.00,REDACT,Minor Adaptations
Wyre Council,http://opendatacommunities.org/doc/district-council/wyre,30/10/2023,Resources,Housing General Fund,134A,J A DICKENS LIMITED,24/10/2023,RS153937,120.00,0.00,REDACT,Minor Adaptations
Wyre Council,http://opendatacommunities.org/doc/district-council/wyre,30/10/2023,Resources,Housing General Fund,134A,J A DICKENS LIMITED,24/10/2023,RS153938,380.00,0.00,REDACT,Minor Adaptations
Wyre Council,http://opendatacommunities.org/doc/district-council/wyre,30/10/2023,Resources,Housing General Fund,134A,J A DICKENS LIMITED,24/10/2023,RS153938,310.00,0.00,REDACT,Minor Adaptations
Wyre Council,http://opendatacommunities.org/doc/district-council/wyre,30/10/2023,Resources,Current Assets,130B,SME HCI Ltd,25/10/2023,RS154021,1618.60,0.00,INVOICE NUMBER: 148384,Miscellaneous Debits
Wyre Council,http://opendatacommunities.org/doc/district-council/wyre,30/10/2023,Resources,Central Services to the Public,131C,VODAFONE LIMITED,17/10/2023,RS153652,12.00,0.00,Mobile Phone Charges,Mobile Devices
Wyre Council,http://opendatacommunities.org/doc/district-council/wyre,30/10/2023,Resources,Support Services,135B,VODAFONE LIMITED,17/10/2023,RS153652,12.00,0.00,Mobile Phone Charges,Mobile Devices
Wyre Council,http://opendatacommunities.org/doc/district-council/wyre,30/10/2023,Resources,Support Services,135B,VODAFONE LIMITED,17/10/2023,RS153652,168.00,0.00,Mobile Phone Charges,Mobile Devices
Wyre Council,http://opendatacommunities.org/doc/district-council/wyre,30/10/2023,Resources,Cultural and Related Services,132A,VODAFONE LIMITED,17/10/2023,RS153652,24.10,0.00,Mobile Phone Charges,Mobile Devices
Wyre Council,http://opendatacommunities.org/doc/district-council/wyre,30/10/2023,Resources,Cultural and Related Services,132A,VODAFONE LIMITED,17/10/2023,RS153652,12.00,0.00,Mobile Phone Charges,Mobile Devices
Wyre Council,http://opendatacommunities.org/doc/district-council/wyre,30/10/2023,Resources,Corporate and Democratic Core,131A,VODAFONE LIMITED,17/10/2023,RS153652,12.00,0.00,Mobile Phone Charges,Mobile Devices
Wyre Council,http://opendatacommunities.org/doc/district-council/wyre,30/10/2023,Resources,Central Services to the Public,131C,VODAFONE LIMITED,17/10/2023,RS153652,24.00,0.00,Mobile Phone Charges,Mobile Devices
Wyre Council,http://opendatacommunities.org/doc/district-council/wyre,30/10/2023,Resources,Support Services,135B,VODAFONE LIMITED,17/10/2023,RS153652,48.00,0.00,Mobile Phone Charges,Mobile Devices
Wyre Council,http://opendatacommunities.org/doc/district-council/wyre,30/10/2023,Resources,Support Services,135B,VODAFONE LIMITED,17/10/2023,RS153652,80.66,0.00,Mobile Phone Charges,Mobile Devices
Wyre Council,http://opendatacommunities.org/doc/district-council/wyre,30/10/2023,Resources,Support Services,135B,VODAFONE LIMITED,17/10/2023,RS153652,187.93,0.00,Mobile Phone Charges,Mobile Devices
Wyre Council,http://opendatacommunities.org/doc/district-council/wyre,30/10/2023,Resources,Support Services,135B,VODAFONE LIMITED,17/10/2023,RS153652,24.00,0.00,Mobile Phone Charges,Mobile Devices
Wyre Council,http://opendatacommunities.org/doc/district-council/wyre,30/10/2023,Resources,Support Services,135B,VODAFONE LIMITED,17/10/2023,RS153652,197.38,0.00,Mobile Phone Charges,Mobile Devices
Wyre Council,http://opendatacommunities.org/doc/district-council/wyre,30/10/2023,Resources,Support Services,135B,VODAFONE LIMITED,17/10/2023,RS153652,12.00,0.00,Mobile Phone Charges,Mobile Devices
Wyre Council,http://opendatacommunities.org/doc/district-council/wyre,30/10/2023,Resources,Cultural and Related Services,132A,VODAFONE LIMITED,17/10/2023,RS153652,12.00,0.00,Mobile Phone Charges,Mobile Devices
Wyre Council,http://opendatacommunities.org/doc/district-council/wyre,30/10/2023,Resources,Support Services,135B,VODAFONE LIMITED,17/10/2023,RS153652,48.00,0.00,Mobile Phone Charges,Mobile Devices
Wyre Council,http://opendatacommunities.org/doc/district-council/wyre,30/10/2023,Resources,Support Services,135B,VODAFONE LIMITED,17/10/2023,RS153652,56.40,0.00,Mobile Phone Charges,Mobile Devices
Wyre Council,http://opendatacommunities.org/doc/district-council/wyre,30/10/2023,Resources,Environmental Services,132B,VODAFONE LIMITED,17/10/2023,RS153652,84.00,0.00,Mobile Phone Charges,Mobile Devices
Wyre Council,http://opendatacommunities.org/doc/district-council/wyre,30/10/2023,Resources,Housing General Fund,134A,VODAFONE LIMITED,17/10/2023,RS153652,36.00,0.00,Mobile Phone Charges,Mobile Devices
Wyre Council,http://opendatacommunities.org/doc/district-council/wyre,30/10/2023,Resources,Support Services,135B,VODAFONE LIMITED,17/10/2023,RS153652,36.00,0.00,Mobile Phone Charges,Mobile Devices
Wyre Council,http://opendatacommunities.org/doc/district-council/wyre,30/10/2023,Resources,Support Services,135B,VODAFONE LIMITED,17/10/2023,RS153652,120.00,0.00,Mobile Phone Charges,Mobile Devices
Wyre Council,http://opendatacommunities.org/doc/district-council/wyre,30/10/2023,Resources,Support Services,135B,VODAFONE LIMITED,17/10/2023,RS153652,72.00,0.00,Mobile Phone Charges,Mobile Devices
Wyre Council,http://opendatacommunities.org/doc/district-council/wyre,30/10/2023,Resources,Support Services,135B,VODAFONE LIMITED,17/10/2023,RS153652,156.00,0.00,Mobile Phone Charges,Mobile Devices
Wyre Council,http://opendatacommunities.org/doc/district-council/wyre,30/10/2023,Resources,Environmental Services,132B,VODAFONE LIMITED,17/10/2023,RS153652,16.00,0.00,Mobile Phone Charges,Mobile Devices
Wyre Council,http://opendatacommunities.org/doc/district-council/wyre,30/10/2023,Resources,Cultural and Related Services,132A,VODAFONE LIMITED,17/10/2023,RS153652,24.00,0.00,Mobile Phone Charges,Mobile Devices
Wyre Council,http://opendatacommunities.org/doc/district-council/wyre,30/10/2023,Resources,Housing General Fund,134A,VODAFONE LIMITED,17/10/2023,RS153652,12.00,0.00,Mobile Phone Charges,Mobile Devices
Wyre Council,http://opendatacommunities.org/doc/district-council/wyre,30/10/2023,Resources,Housing General Fund,134A,VODAFONE LIMITED,17/10/2023,RS153652,72.00,0.00,Mobile Phone Charges,Mobile Devices
Wyre Council,http://opendatacommunities.org/doc/district-council/wyre,30/10/2023,Resources,Housing General Fund,134A,VODAFONE LIMITED,17/10/2023,RS153652,32.00,0.00,Mobile Phone Charges,Mobile Devices
Wyre Council,http://opendatacommunities.org/doc/district-council/wyre,30/10/2023,Resources,Support Services,135B,VODAFONE LIMITED,17/10/2023,RS153652,36.00,0.00,Mobile Phone Charges,Mobile Devices
Wyre Council,http://opendatacommunities.org/doc/district-council/wyre,30/10/2023,Resources,Support Services,135B,VODAFONE LIMITED,17/10/2023,RS153652,292.00,0.00,Mobile Phone Charges,Mobile Devices
Wyre Council,http://opendatacommunities.org/doc/district-council/wyre,30/10/2023,Resources,Support Services,135B,VODAFONE LIMITED,17/10/2023,RS153652,24.00,0.00,Mobile Phone Charges,Mobile Devices
Wyre Council,http://opendatacommunities.org/doc/district-council/wyre,30/10/2023,Resources,Support Services,135B,VODAFONE LIMITED,17/10/2023,RS153652,32.00,0.00,Mobile Phone Charges,Mobile Devices
Wyre Council,http://opendatacommunities.org/doc/district-council/wyre,30/10/2023,Resources,Support Services,135B,VODAFONE LIMITED,17/10/2023,RS153652,36.00,0.00,Mobile Phone Charges,Mobile Devices
Wyre Council,http://opendatacommunities.org/doc/district-council/wyre,30/10/2023,Resources,Support Services,135B,VODAFONE LIMITED,17/10/2023,RS153652,20.00,0.00,Mobile Phone Charges,Mobile Devices
Wyre Council,http://opendatacommunities.org/doc/district-council/wyre,30/10/2023,People and Places,Highways,133B,Andrew Signs LTD,13/10/2023,PE153624,293.60,0.00,VARIUOS SIGNS - SEPTEMBER AS PER INV 1537,Naming of Streets
Wyre Council,http://opendatacommunities.org/doc/district-council/wyre,30/10/2023,People and Places,Highways,133B,Andrew Signs LTD,03/10/2023,PE153313,321.10,0.00,payment for goods already received and invoiced on INV-1526,Naming of Streets
Wyre Council,http://opendatacommunities.org/doc/district-council/wyre,30/10/2023,Finance,Current Assets,130B,,03/10/2023,WPST00120448,11997.20,0.00,NNDR Refunds,NNDR Refunds
Wyre Council,http://opendatacommunities.org/doc/district-council/wyre,30/10/2023,Finance,Current Assets,130B,,24/10/2023,WPST00122809,7321.26,0.00,20/10/2023CTAX-NNDR REFUNDS,NNDR Refunds
Wyre Council,http://opendatacommunities.org/doc/district-council/wyre,30/10/2023,Finance,Current Assets,130B,,17/10/2023,WPST00121851,11882.14,0.00,13/10/2023CTAX-NNDR REFUNDS,NNDR Refunds
Wyre Council,http://opendatacommunities.org/doc/district-council/wyre,30/10/2023,Finance,Current Assets,130B,,11/10/2023,WPST00121204,35923.25,0.00,06/10/2023 NNDR Refunds,NNDR Refunds
Wyre Council,http://opendatacommunities.org/doc/district-council/wyre,30/10/2023,Finance,Current Assets,130B,,31/10/2023,WPST00123432,197925.00,0.00, 27/10/23 NNDR Refunds,NNDR Refunds
Wyre Council,http://opendatacommunities.org/doc/district-council/wyre,30/10/2023,Finance,General Fund below the line,136A,DEPARTMENT FOR COMMUNITIES AND LOCAL GOVERNMENT,23/10/2023,WPST00122602,643840.00,0.00, 19/10/23 R V B C GENERAL,NNDR Tariff to Government
Wyre Council,http://opendatacommunities.org/doc/district-council/wyre,30/10/2023,Finance,Collection Fund Revenue Accts,138A,DEPARTMENT FOR COMMUNITIES AND LOCAL GOVERNMENT,23/10/2023,WPST00122556,1022749.00,0.00,DLUHC - Bus Rates Central Share 19/10/23,NNDR Tariff to Government
Wyre Council,http://opendatacommunities.org/doc/district-council/wyre,30/10/2023,Resources,Support Services,135B,People Asset Management LTD,12/10/2023,RS153456,2226.61,0.00,Monthly PAYG Charges,Occupational Health Fees
Wyre Council,http://opendatacommunities.org/doc/district-council/wyre,30/10/2023,Resources,Support Services,135B,People Asset Management LTD,12/10/2023,RS153456,459.41,0.00,Monthly PAYG Charges,Occupational Health Fees
Wyre Council,http://opendatacommunities.org/doc/district-council/wyre,30/10/2023,People and Places,Environmental Services,132B,DANFO (UK) LTD,13/10/2023,PE153565,23387.86,0.00,Public Conveniences - Maintenance and Cleaning 2023/24,Other Establishments
Wyre Council,http://opendatacommunities.org/doc/district-council/wyre,30/10/2023,Finance,Collection Fund Revenue Accts,138A,LANCASHIRE COUNTY COUNCIL,23/10/2023,WPST00122538,230119.00,0.00,LCC 23/24 Business Rates,Other Local Authorities
Wyre Council,http://opendatacommunities.org/doc/district-council/wyre,30/10/2023,Finance,Collection Fund Revenue Accts,138A,LANCASHIRE FIRE AUTHORITY,23/10/2023,WPST00122542,25569.00,0.00,Lancs Fire 23/24 Business Rates,Other Local Authorities
Wyre Council,http://opendatacommunities.org/doc/district-council/wyre,30/10/2023,Finance,Collection Fund Revenue Accts,138A,LANCASHIRE FIRE AUTHORITY,23/10/2023,WPST00122540,316703.00,0.00,Lancs Fire 23/24 Council Tax,Other Local Authorities
Wyre Council,http://opendatacommunities.org/doc/district-council/wyre,30/10/2023,Finance,Collection Fund Revenue Accts,138A,,23/10/2023,WPST00122541,15190.00,0.00,Lancs Fire 22/23 Council Tax Surplus,Other Local Authorities
Wyre Council,http://opendatacommunities.org/doc/district-council/wyre,30/10/2023,Finance,Collection Fund Revenue Accts,138A,LANCASHIRE COUNTY COUNCIL,23/10/2023,WPST00122536,6061941.00,0.00,LCC-23/24 Council tax,Other Local Authorities
Wyre Council,http://opendatacommunities.org/doc/district-council/wyre,30/10/2023,Finance,Collection Fund Revenue Accts,138A,LANCASHIRE FIRE AUTHORITY,23/10/2023,WPST00122537,297674.00,0.00,LCC 22/23 Council Tax Surplus,Other Local Authorities
Wyre Council,http://opendatacommunities.org/doc/district-council/wyre,30/10/2023,Finance,Collection Fund Revenue Accts,138A,,23/10/2023,WPST00122545,46481.00,0.00,PCC Lancashire 22/23 Council Tax Surplus,Other Local Authorities
Wyre Council,http://opendatacommunities.org/doc/district-council/wyre,30/10/2023,Finance,Collection Fund Revenue Accts,138A,,23/10/2023,WPST00122544,967972.00,0.00,PCCLancashire 23/24 Council Tax,Other Local Authorities
Wyre Council,http://opendatacommunities.org/doc/district-council/wyre,30/10/2023,People and Places,Cultural and Related Services,132A,Lubbe & Sons (Bulbs) LTD,31/10/2023,PE154127,890.00,0.00," to supply and deliver FOA Georgia Luckett , Wyre Borough Council ,Breck Rd, Poulton FY6 7PU  2000 Crocus large flowering mixed 2000 hyacinthoides non-scripta 2000 Narcissus obvallaris   + associated plant inspections and handling",Other Materials
Wyre Council,http://opendatacommunities.org/doc/district-council/wyre,30/10/2023,People and Places,Parking Services,133F,Park Now Limited,09/10/2023,PE153404,728.44,0.00,RingGo Fees for 1 April 2023 - 31 March 2024- service charges- text summary charges- text reminder charges- card processing fess,Other Parking Fees and Commission
Wyre Council,http://opendatacommunities.org/doc/district-council/wyre,30/10/2023,People and Places,Environmental Services,132B,Lancashire County Council,27/10/2023,PE154058,30.00,0.00,REDACT,Other Rechargeable Services
Wyre Council,http://opendatacommunities.org/doc/district-council/wyre,30/10/2023,People and Places,Parking Services,133F,TARMAC TRADING LTD,27/10/2023,PE153971,548.90,0.00,"Aggregate limestone Wyre Road Carpark, Skipool, Thornton Ticket 1003561670 12/10/23","Paths, Roads and Car Park Mtnce Annual"
Wyre Council,http://opendatacommunities.org/doc/district-council/wyre,30/10/2023,People and Places,Support Services,135B,Allstar Business Solutions LTD,24/10/2023,PE153731,203.73,0.00,Fuel to 12/10/23,Petrol
Wyre Council,http://opendatacommunities.org/doc/district-council/wyre,30/10/2023,People and Places,Support Services,135B,Allstar Business Solutions LTD,11/10/2023,PE153310,306.79,0.00,Fuel to 29/09/23,Petrol
Wyre Council,http://opendatacommunities.org/doc/district-council/wyre,30/10/2023,People and Places,Planning and Development Servs,132C,EAS Electrical Mechanical,11/10/2023,PE153533,110.40,0.00,Unit 16 Butts Close: EICR Remedials,Planned Building Maintenance
Wyre Council,http://opendatacommunities.org/doc/district-council/wyre,30/10/2023,People and Places,Cultural and Related Services,132A,Schneider Electric LTD,11/10/2023,PE153422,462.00,0.00,Garstang Swimming Pool: Per quote 115290-518-A,Planned Building Maintenance
Wyre Council,http://opendatacommunities.org/doc/district-council/wyre,30/10/2023,People and Places,Cultural and Related Services,132A,Schneider Electric LTD,25/10/2023,PE153665,860.00,0.00,Marine Hall: 01/10/23 to 30/09/24 Maintenance,Planned Building Maintenance
Wyre Council,http://opendatacommunities.org/doc/district-council/wyre,30/10/2023,People and Places,Cultural and Related Services,132A,M D Security,30/10/2023,PE154041,50.00,0.00,Mount Pavilion and Studios: Carried out emergency light test to whole sites,Planned Building Maintenance
Wyre Council,http://opendatacommunities.org/doc/district-council/wyre,30/10/2023,People and Places,Cultural and Related Services,132A,M D Security,30/10/2023,PE154043,50.00,0.00,Riverside Rangers Room: Carried out emergency light test to whole site,Planned Building Maintenance
Wyre Council,http://opendatacommunities.org/doc/district-council/wyre,30/10/2023,People and Places,Planning and Development Servs,132C,M D Security,30/10/2023,PE154042,60.00,0.00,Fleetwood Market: Carried out emergency light test to whole site that`s accessible to the public,Planned Building Maintenance
Wyre Council,http://opendatacommunities.org/doc/district-council/wyre,30/10/2023,People and Places,Cultural and Related Services,132A,M D Security,23/10/2023,PE153874,50.00,0.00,Marsh Mill: Carried out emergency light test on whole site,Planned Building Maintenance
Wyre Council,http://opendatacommunities.org/doc/district-council/wyre,30/10/2023,People and Places,Environmental Services,132B,M D Security,23/10/2023,PE153876,50.00,0.00,Chatsworth Depot: Carried out emergency light test on whole site,Planned Building Maintenance
Wyre Council,http://opendatacommunities.org/doc/district-council/wyre,30/10/2023,People and Places,Planning and Development Servs,132C,M D Security,23/10/2023,PE153875,60.00,0.00,Copse Rd Depot inc Transport Depot: Emergency light test on whole site,Planned Building Maintenance
Wyre Council,http://opendatacommunities.org/doc/district-council/wyre,30/10/2023,People and Places,Planning and Development Servs,132C,ADJ Doors Ltd T/A Keman Roller Shutters,25/10/2023,PE153632,436.50,0.00,to servoce 9 no. roller shutters at Fleetwood Market,Planned Building Maintenance
Wyre Council,http://opendatacommunities.org/doc/district-council/wyre,30/10/2023,People and Places,Support Services,135B,ADJ Doors Ltd T/A Keman Roller Shutters,23/10/2023,PE153633,48.50,0.00,Service roller shutter at Civic Centre,Planned Building Maintenance
Wyre Council,http://opendatacommunities.org/doc/district-council/wyre,30/10/2023,People and Places,Cultural and Related Services,132A,John Carney,24/10/2023,PE153927,80.00,0.00,Jean Stansfield Bowling Club: For cleaning out all gutters to roof and unblocking all down pipes,Planned Building Maintenance
Wyre Council,http://opendatacommunities.org/doc/district-council/wyre,30/10/2023,People and Places,Cultural and Related Services,132A,John Carney,24/10/2023,PE153926,160.00,0.00,Mount Pavilion: For clearing out all gutters to lower and second level. Unblocking and checking all down pipes,Planned Building Maintenance
Wyre Council,http://opendatacommunities.org/doc/district-council/wyre,30/10/2023,People and Places,Cultural and Related Services,132A,John Carney,25/10/2023,PE154016,250.00,0.00,Cleaning all gulleys and gutter to Thornton Little Theatre,Planned Building Maintenance
Wyre Council,http://opendatacommunities.org/doc/district-council/wyre,30/10/2023,People and Places,Cultural and Related Services,132A,John Carney,25/10/2023,PE154015,260.00,0.00,Cleaning all gutter outlet and gutters at Thornton Sports Centre,Planned Building Maintenance
Wyre Council,http://opendatacommunities.org/doc/district-council/wyre,30/10/2023,People and Places,Cultural and Related Services,132A,Lancashire Home Inspection Ltd,16/10/2023,PE153635,945.00,0.00,"Fleetwood Leisure & Swimming Centre, The Esplanade, Fleetwood, FY7 6HF: Commercial EPC",Planned Building Maintenance
Wyre Council,http://opendatacommunities.org/doc/district-council/wyre,30/10/2023,People and Places,Cultural and Related Services,132A,Lancashire Home Inspection Ltd,16/10/2023,PE153631,582.00,0.00,"Poulton Swimming Centre, Breck Rd, Poulton, FY6 7HJ: Commercial  EPC",Planned Building Maintenance
Wyre Council,http://opendatacommunities.org/doc/district-council/wyre,30/10/2023,People and Places,Cultural and Related Services,132A,Lancashire Home Inspection Ltd,23/10/2023,PE153810,185.00,0.00,"Commercial EPC Maintenance workshop, fleetwood Golf club, FY7 8AFF",Planned Building Maintenance
Wyre Council,http://opendatacommunities.org/doc/district-council/wyre,30/10/2023,People and Places,Cultural and Related Services,132A,Lancashire Home Inspection Ltd,23/10/2023,PE153812,687.00,0.00,"Commercial EPC Fleetwood Golf Club, FY7 8AF",Planned Building Maintenance
Wyre Council,http://opendatacommunities.org/doc/district-council/wyre,30/10/2023,People and Places,Central Services to the Public,131C,Lancashire Home Inspection Ltd,04/10/2023,PE153347,250.00,0.00,Commercial Energy performnce Certificate for Senior Fish and Chips,Planned Building Maintenance
Wyre Council,http://opendatacommunities.org/doc/district-council/wyre,30/10/2023,People and Places,Environmental Services,132B,Lancashire Home Inspection Ltd,04/10/2023,PE153346,375.00,0.00,Commercial Energy Performance Certificate for Chatsworth Depot,Planned Building Maintenance
Wyre Council,http://opendatacommunities.org/doc/district-council/wyre,30/10/2023,People and Places,Planning and Development Servs,132C,Lancashire Home Inspection Ltd,04/10/2023,PE153345,675.00,0.00,Commercial Energy Performance Certificate for Copse Road Depot,Planned Building Maintenance
Wyre Council,http://opendatacommunities.org/doc/district-council/wyre,30/10/2023,People and Places,Planning and Development Servs,132C,Lancashire Home Inspection Ltd,04/10/2023,PE153348,375.00,0.00,Commercial Energy Performance Certificate for Vehicle Maintenance Depot,Planned Building Maintenance
Wyre Council,http://opendatacommunities.org/doc/district-council/wyre,30/10/2023,People and Places,Cultural and Related Services,132A,Lancashire Home Inspection Ltd,31/10/2023,PE154146,864.00,0.00,"Commercial EPC Marine Hall, the Esplanade, Fleetwood, FY7 6HF",Planned Building Maintenance
Wyre Council,http://opendatacommunities.org/doc/district-council/wyre,30/10/2023,People and Places,Cultural and Related Services,132A,Cumbria Clock Company Ltd,31/10/2023,PE154154,3741.00,0.00,"Please undertake  all associated works to convert  the Mount clock from original wind up to auto wind (to include all 3 sections of works quoted i.e. quotes 1,2,3) on your quotation 31 May 23.
£12,470 plus VAT

Note contacts for access to the Mount Clo",Planned Building Maintenance
Wyre Council,http://opendatacommunities.org/doc/district-council/wyre,30/10/2023,People and Places,Environmental Services,132B,The Columbaria Company,27/10/2023,PE153985,107.00,0.00,REDACT,Plaque Inscriptions and Furniture
Wyre Council,http://opendatacommunities.org/doc/district-council/wyre,30/10/2023,People and Places,Environmental Services,132B,The Columbaria Company,27/10/2023,PE153984,268.50,0.00,REDACT,Plaque Inscriptions and Furniture
Wyre Council,http://opendatacommunities.org/doc/district-council/wyre,30/10/2023,People and Places,Environmental Services,132B,The Columbaria Company,30/10/2023,PE154045,259.90,0.00,REDACT,Plaque Inscriptions and Furniture
Wyre Council,http://opendatacommunities.org/doc/district-council/wyre,30/10/2023,People and Places,Environmental Services,132B,The Columbaria Company,30/10/2023,PE153958,107.00,0.00,REDACT,Plaque Inscriptions and Furniture
Wyre Council,http://opendatacommunities.org/doc/district-council/wyre,30/10/2023,People and Places,Environmental Services,132B,The Columbaria Company,30/10/2023,PE153852,83.90,0.00,REDACT,Plaque Inscriptions and Furniture
Wyre Council,http://opendatacommunities.org/doc/district-council/wyre,30/10/2023,Finance,Central Services to the Public,131C,SANTANDER,09/10/2023,WPST00121111,722.66,0.00,05/10/2023SAN UK ACC RECEIVE,Plastic Cards Processing Fees
Wyre Council,http://opendatacommunities.org/doc/district-council/wyre,30/10/2023,Resources,Central Services to the Public,131C,Critiqom LTD,13/10/2023,RS153616,388.71,0.00,Daily Bills Services Sep 23,Postage
Wyre Council,http://opendatacommunities.org/doc/district-council/wyre,30/10/2023,Resources,Central Services to the Public,131C,Critiqom LTD,13/10/2023,RS153616,8.25,0.00,Daily Bills - Energy Surcharge Services Sep 23,Postage
Wyre Council,http://opendatacommunities.org/doc/district-council/wyre,30/10/2023,Resources,Housing General Fund,134A,Critiqom LTD,13/10/2023,RS153616,38.45,0.00,Benefit Notifications Services Sep 23,Postage
Wyre Council,http://opendatacommunities.org/doc/district-council/wyre,30/10/2023,Resources,Housing General Fund,134A,Critiqom LTD,13/10/2023,RS153616,0.82,0.00,Benefit Notifications - Energy Surcharge Services Sep 23,Postage
Wyre Council,http://opendatacommunities.org/doc/district-council/wyre,30/10/2023,Resources,Housing General Fund,134A,Critiqom LTD,13/10/2023,RS153617,142.67,0.00,Benefit Notifications Postage Sep 23,Postage
Wyre Council,http://opendatacommunities.org/doc/district-council/wyre,30/10/2023,Resources,Cultural and Related Services,132A,Critiqom LTD,13/10/2023,RS153616,0.52,0.00,IQ Post - Marine Hall Services Sep 23,Postage
Wyre Council,http://opendatacommunities.org/doc/district-council/wyre,30/10/2023,Resources,Cultural and Related Services,132A,Critiqom LTD,13/10/2023,RS153616,0.01,0.00,IQ Post - Marine Hall - Energy Surcharge Services Sep 23,Postage
Wyre Council,http://opendatacommunities.org/doc/district-council/wyre,30/10/2023,Resources,Central Services to the Public,131C,Critiqom LTD,13/10/2023,RS153616,483.32,0.00,IQ post - Electoral Services Sep 23,Postage
Wyre Council,http://opendatacommunities.org/doc/district-council/wyre,30/10/2023,Resources,Central Services to the Public,131C,Critiqom LTD,13/10/2023,RS153616,10.25,0.00,IQ post - Electoral - Energy Surcharge Services Sep 23,Postage
Wyre Council,http://opendatacommunities.org/doc/district-council/wyre,30/10/2023,Resources,Support Services,135B,Critiqom LTD,13/10/2023,RS153616,599.34,0.00,IQ post - Off Serv Admin Services Sep 23,Postage
Wyre Council,http://opendatacommunities.org/doc/district-council/wyre,30/10/2023,Resources,Support Services,135B,Critiqom LTD,13/10/2023,RS153616,12.71,0.00,IQ post - Off Serv Admin - Energy Surcharge Services Sep 23,Postage
Wyre Council,http://opendatacommunities.org/doc/district-council/wyre,30/10/2023,Resources,Support Services,135B,Critiqom LTD,13/10/2023,RS153616,1.62,0.00,IQ post - Recovery Services Sep 23,Postage
Wyre Council,http://opendatacommunities.org/doc/district-council/wyre,30/10/2023,Resources,Support Services,135B,Critiqom LTD,13/10/2023,RS153616,0.03,0.00,IQ post - Recovery - Energy Surcharge Services Sep 23,Postage
Wyre Council,http://opendatacommunities.org/doc/district-council/wyre,30/10/2023,Resources,Support Services,135B,Critiqom LTD,13/10/2023,RS153616,103.24,0.00,Ctax Reminders Services Sep 23,Postage
Wyre Council,http://opendatacommunities.org/doc/district-council/wyre,30/10/2023,Resources,Support Services,135B,Critiqom LTD,13/10/2023,RS153616,2.19,0.00,Ctax Reminders - Energy Surcharge Services Sep 23,Postage
Wyre Council,http://opendatacommunities.org/doc/district-council/wyre,30/10/2023,Resources,Support Services,135B,Critiqom LTD,13/10/2023,RS153616,2.57,0.00,NNDR Reminders Services Sep 23,Postage
Wyre Council,http://opendatacommunities.org/doc/district-council/wyre,30/10/2023,Resources,Support Services,135B,Critiqom LTD,13/10/2023,RS153616,0.05,0.00,NNDR Reminders - Energy Surcharge Services Sep 23,Postage
Wyre Council,http://opendatacommunities.org/doc/district-council/wyre,30/10/2023,Resources,Support Services,135B,Critiqom LTD,13/10/2023,RS153616,70.46,0.00,Ctax Summons Services Sep 23,Postage
Wyre Council,http://opendatacommunities.org/doc/district-council/wyre,30/10/2023,Resources,Support Services,135B,Critiqom LTD,13/10/2023,RS153616,1.50,0.00,Ctax Summons - Energy Surcharge Services Sep 23,Postage
Wyre Council,http://opendatacommunities.org/doc/district-council/wyre,30/10/2023,Resources,Support Services,135B,Critiqom LTD,13/10/2023,RS153616,4.63,0.00,NNDR Summons Services Sep 23,Postage
Wyre Council,http://opendatacommunities.org/doc/district-council/wyre,30/10/2023,Resources,Support Services,135B,Critiqom LTD,13/10/2023,RS153616,0.10,0.00,NNDR Summons - Energy Surcharge Services Sep 23,Postage
Wyre Council,http://opendatacommunities.org/doc/district-council/wyre,30/10/2023,Resources,Support Services,135B,Critiqom LTD,13/10/2023,RS153617,326.00,0.00,Council Tax Reminders Postage Sep 23,Postage
Wyre Council,http://opendatacommunities.org/doc/district-council/wyre,30/10/2023,Resources,Support Services,135B,Critiqom LTD,13/10/2023,RS153617,18.90,0.00,NNDR Reminders Postage Sep 23,Postage
Wyre Council,http://opendatacommunities.org/doc/district-council/wyre,30/10/2023,Resources,Support Services,135B,Critiqom LTD,13/10/2023,RS153617,194.86,0.00,Council Tax Summons Postage Sep 23,Postage
Wyre Council,http://opendatacommunities.org/doc/district-council/wyre,30/10/2023,Resources,Support Services,135B,Critiqom LTD,13/10/2023,RS153617,16.04,0.00,NNDR Summons Postage Sep 23,Postage
Wyre Council,http://opendatacommunities.org/doc/district-council/wyre,30/10/2023,Resources,Support Services,135B,Critiqom LTD,13/10/2023,RS153616,200.00,0.00,WBC IQPostMe -WBC007 &amp; WBC008 Technical Services Sep 23,Postage
Wyre Council,http://opendatacommunities.org/doc/district-council/wyre,30/10/2023,Resources,Support Services,135B,Critiqom LTD,13/10/2023,RS153616,806.40,0.00,IQ post - CC Services Sep 23,Postage
Wyre Council,http://opendatacommunities.org/doc/district-council/wyre,30/10/2023,Resources,Support Services,135B,Critiqom LTD,13/10/2023,RS153616,17.11,0.00,IQ post - CC - Energy Surcharge Services Sep 23,Postage
Wyre Council,http://opendatacommunities.org/doc/district-council/wyre,30/10/2023,Resources,Support Services,135B,Critiqom LTD,13/10/2023,RS153616,205.03,0.00,IQ Post - Planning Services Sep 23,Postage
Wyre Council,http://opendatacommunities.org/doc/district-council/wyre,30/10/2023,Resources,Support Services,135B,Critiqom LTD,13/10/2023,RS153616,4.35,0.00,IQ Post - Planning Services Sep 23,Postage
Wyre Council,http://opendatacommunities.org/doc/district-council/wyre,30/10/2023,Resources,Central Services to the Public,131C,Critiqom LTD,13/10/2023,RS153617,1606.87,0.00,Daily Bills Postage Sep 23,Postage
Wyre Council,http://opendatacommunities.org/doc/district-council/wyre,30/10/2023,People and Places,Environmental Services,132B,PermiServ Ltd,13/10/2023,PE153623,285.09,0.00,"27,000 Production, Postage and Management of Green Waste  Subscription Stickers/Portal, as per Lancashire Agreement (Unit cost £1.02 per sticker)  Please leave PO open as it will be drawn-off each month  e-mail address: Rebecca Padgham rebecca@permiserv.c",Postage
Wyre Council,http://opendatacommunities.org/doc/district-council/wyre,30/10/2023,People and Places,Parking Services,133F,Integrity Print Ltd,06/10/2023,PE153367,1126.50,0.00,"Please supply 150 PCN rolls - West Lancs template, including Wyre Logo, as per your quotation of 7 Sept 2023Delivery toPaul LongRoom 135Wyre Civic CentreBreck RoadPoulton-le-FyldeFY6 7PU",Printing
Wyre Council,http://opendatacommunities.org/doc/district-council/wyre,30/10/2023,Finance,Housing General Fund,134A,,06/10/2023,WPST00120992,8608.33,0.00,ukraine - 04/10/2023,Private Contractors
Wyre Council,http://opendatacommunities.org/doc/district-council/wyre,30/10/2023,People and Places,Public Transport,133G,Wyre Marine Services,18/10/2023,PE153761,5000.00,0.00,"Knott End Ferry ServiceSchedule of  payments Oct 2023 - April 202412 Oct - 11 Nov  - £9,518.3312 Nov - 11 Dec  - £9,518.3312 Dec - 11 Jan  - £9,518.3312 Jan - 11 Feb  - £9,518.3312 Feb - 11 Mar  - £9,518.3412 Mar - 11 Apr  - £9,518.34",Private Contractors
Wyre Council,http://opendatacommunities.org/doc/district-council/wyre,30/10/2023,People and Places,Parking Services,133F,NSL Services Group,06/10/2023,PE153366,4544.80,0.00,Provide enforcement officer for Wyre Council car parks - 1 April 2023 - 31 March 2024,Private Contractors
Wyre Council,http://opendatacommunities.org/doc/district-council/wyre,30/10/2023,People and Places,Environmental Services,132B,A & D DRAIN SERVICES LTD,24/10/2023,PE153940,900.00,0.00,"Undertake desilt and CCTV inspection of 150m culvert adjacent Victoria Road East, Thornton as per your quotation (based on 6 tonnes silt to be removed)Works planned for Tuesday 19 September - meet Paul Long on site as arranged. Contact number (07870 1",Private Contractors
Wyre Council,http://opendatacommunities.org/doc/district-council/wyre,30/10/2023,People and Places,Cultural and Related Services,132A,Melrose Development Services Ltd,23/10/2023,PE153332,1428.25,0.00,Marsh Mill rental and  service charge 01/10/23 to 31/12/23,Private Contractors
Wyre Council,http://opendatacommunities.org/doc/district-council/wyre,30/10/2023,Resources,Parking Services,133F,Traffic Enforcement Centre,12/10/2023,RS153613,1000.00,0.00,Advance funds for debt registration for Wyre Council (Code WB),Private Contractors
Wyre Council,http://opendatacommunities.org/doc/district-council/wyre,30/10/2023,People and Places,Public Transport,133G,GARRY CARR BUILDING SERVICES LTD,31/10/2023,PE154148,70.00,0.00,*** Confirmation order *** Carry out clean of bus shelter as advised by Maria Leeder,Private Contractors
Wyre Council,http://opendatacommunities.org/doc/district-council/wyre,30/10/2023,People and Places,Cultural and Related Services,132A,Fylde Coast YMCA,09/10/2023,PE153295,-10630.00,0.00,Summer HAF 2023 Thornton YMCA,Project Costs
Wyre Council,http://opendatacommunities.org/doc/district-council/wyre,30/10/2023,People and Places,Cultural and Related Services,132A,Fylde Coast YMCA,09/10/2023,PE153296,-10630.00,0.00,Summer HAF 2023 Fleetwood YMCA,Project Costs
Wyre Council,http://opendatacommunities.org/doc/district-council/wyre,30/10/2023,People and Places,Cultural and Related Services,132A,Fleetwood Town Community Trust,09/10/2023,PE153429,27745.00,0.00,Summer HAF Camp 2023 - FTFCCT,Project Costs
Wyre Council,http://opendatacommunities.org/doc/district-council/wyre,30/10/2023,People and Places,Planning and Development Servs,132C,Relandscape LTD,16/10/2023,PE153668,6142.50,0.00,"Works to Cottam Hall Masterplan, Poulton.    Arranged by Christina Marginson",Project Costs
Wyre Council,http://opendatacommunities.org/doc/district-council/wyre,30/10/2023,People and Places,Cultural and Related Services,132A,Lords Deli,09/10/2023,PE153416,6645.00,0.00,Summer HAF Food Orders,Project Costs
Wyre Council,http://opendatacommunities.org/doc/district-council/wyre,30/10/2023,Resources,Planning and Development Servs,132C,Visual Print and Design Ltd,18/10/2023,RS153844,110.00,0.00,2 x pull up banner Community Matters carers drop in groupRe-order due to Steph spelling mistake,Project Costs
Wyre Council,http://opendatacommunities.org/doc/district-council/wyre,30/10/2023,Resources,Planning and Development Servs,132C,Visual Print and Design Ltd,05/10/2023,RS153358,110.00,0.00,2 x Community Matters careers drop in pull up banners,Project Costs
Wyre Council,http://opendatacommunities.org/doc/district-council/wyre,30/10/2023,People and Places,Cultural and Related Services,132A,Healthy Heads Education Ltd,20/10/2023,PE153861,1400.00,0.00,HAF Provider Workshops and materials - Healthy Heads,Project Costs
Wyre Council,http://opendatacommunities.org/doc/district-council/wyre,30/10/2023,People and Places,Cultural and Related Services,132A,McGann Boxing and Fitness,10/10/2023,PE153428,2019.02,0.00,Summer HAF delivery 2023,Project Costs
Wyre Council,http://opendatacommunities.org/doc/district-council/wyre,30/10/2023,People and Places,Cultural and Related Services,132A,The Creation Station Blackpool,19/10/2023,PE153856,900.00,0.00,"Payment 1 of 2 - `Have Fun` arts and craft sessions at Victoria Day Centre, Thornton, sessions starting 29th September 2023 for 8 weeks",Project Costs
Wyre Council,http://opendatacommunities.org/doc/district-council/wyre,30/10/2023,People and Places,Planning and Development Servs,132C,Age UK Lancashire,19/10/2023,PE153744,515.00,0.00,Support service for Garstang Carers group - UKSPF  6 months support,Project Costs
Wyre Council,http://opendatacommunities.org/doc/district-council/wyre,30/10/2023,People and Places,Planning and Development Servs,132C,Northern Print Distribution,09/10/2023,PE153403,1250.00,0.00,Collection of 50k FM leaflets,Promotions - General
Wyre Council,http://opendatacommunities.org/doc/district-council/wyre,30/10/2023,People and Places,Planning and Development Servs,132C,Prodigital And Event Management Ltd LTD,03/10/2023,PE153316,495.00,0.00,Order No: FMLA1013 - Christmas event at FM,Promotions - General
Wyre Council,http://opendatacommunities.org/doc/district-council/wyre,30/10/2023,People and Places,Planning and Development Servs,132C,Prodigital And Event Management Ltd LTD,13/10/2023,PE153618,200.00,0.00,Order no: FMLA1014   AGDO for Group Festive 2023,Promotions - General
Wyre Council,http://opendatacommunities.org/doc/district-council/wyre,30/10/2023,People and Places,Environmental Services,132B,PermiServ Ltd,13/10/2023,PE153623,285.09,0.00,"27,000 Production, Postage and Management of Green Waste  Subscription Stickers/Portal, as per Lancashire Agreement (Unit cost £1.02 per sticker)  Please leave PO open as it will be drawn-off each month  e-mail address: Rebecca Padgham rebecca@permiserv.c",Promotions - General
Wyre Council,http://opendatacommunities.org/doc/district-council/wyre,30/10/2023,People and Places,Planning and Development Servs,132C,Same Difference Arts Ltd,11/10/2023,PE153452,668.00,0.00,Walkabout Act - Brussell Sprouts @ Fleetwood Market on the 9th Dec. Price including giveaways,Promotions - General
Wyre Council,http://opendatacommunities.org/doc/district-council/wyre,30/10/2023,People and Places,Environmental Services,132B,Key Engineering & Hygiene Supplies LTD,17/10/2023,PE153757,73.00,0.00,"Please supply as per quotation 2069450 pairs of Nitrile Knitwrist gloves in LARGE Navy, code A300NARL @ £1.46 each",Protective Clothing
Wyre Council,http://opendatacommunities.org/doc/district-council/wyre,30/10/2023,People and Places,Environmental Services,132B,Key Engineering & Hygiene Supplies LTD,17/10/2023,PE153757,73.00,0.00,"50 pairs of Nitrile Knitwrist gloves in XL, code A300NARXL @ £1.46 each",Protective Clothing
Wyre Council,http://opendatacommunities.org/doc/district-council/wyre,30/10/2023,People and Places,Environmental Services,132B,Key Engineering & Hygiene Supplies LTD,17/10/2023,PE153757,3.32,0.00,"1 boxes of microplast blue detectable plasters 100 Assorted @ £3.32 per box Delivery to Wyre Council, Copse Road Depot, Copse Road, Fleetwood, Lancashire, FY7 6RP",Protective Clothing
Wyre Council,http://opendatacommunities.org/doc/district-council/wyre,30/10/2023,People and Places,Environmental Services,132B,Key Engineering & Hygiene Supplies LTD,30/10/2023,PE153117,15.68,0.00,1 fleece and logo,Protective Clothing
Wyre Council,http://opendatacommunities.org/doc/district-council/wyre,30/10/2023,Resources,Support Services,135B,Key Engineering & Hygiene Supplies LTD,24/10/2023,RS153964,67.56,0.00,EXTRA LARGE BLACK POLO SHIRTS WITH POCKET / WYRE LOGO EMBROIDERED ABOVE POCKET,Protective Clothing
Wyre Council,http://opendatacommunities.org/doc/district-council/wyre,30/10/2023,Resources,Support Services,135B,Key Engineering & Hygiene Supplies LTD,24/10/2023,RS153964,101.34,0.00,LARGE BLACK POLO SHIRTS WITH POCKET /WYRE LOGO EMBROIDERED ABOVE POCKET,Protective Clothing
Wyre Council,http://opendatacommunities.org/doc/district-council/wyre,30/10/2023,Resources,Support Services,135B,Key Engineering & Hygiene Supplies LTD,24/10/2023,RS153964,168.90,0.00,MEDIUM BLACK POLO SHIRTS WITH POCKET /WYRE LOGO EMBROIDERED ABOVE POCKET,Protective Clothing
Wyre Council,http://opendatacommunities.org/doc/district-council/wyre,30/10/2023,Resources,Support Services,135B,Key Engineering & Hygiene Supplies LTD,24/10/2023,RS153964,60.00,0.00,WYRE COUNCIL EMBROIDERED LOGO,Protective Clothing
Wyre Council,http://opendatacommunities.org/doc/district-council/wyre,30/10/2023,People and Places,Environmental Services,132B,Glasdon UK LTD,16/10/2023,PE153627,6453.47,0.00,"Supply bins as per quotation EQ70091785 1/9/23Delivery to Wyre Council, Copse Road Depot, Copse Road, Fleetwood, Lancashire, FY7 6RP","Provision of Bins, Boxes and Sacks"
Wyre Council,http://opendatacommunities.org/doc/district-council/wyre,30/10/2023,People and Places,Environmental Services,132B,Glasdon UK LTD,27/10/2023,PE154056,289.80,0.00,"Supply as per quotation EQ70092081, 8/9/23Universal Ashtray Spare undercarriage with fixings - 021/0079","Provision of Bins, Boxes and Sacks"
Wyre Council,http://opendatacommunities.org/doc/district-council/wyre,30/10/2023,People and Places,Environmental Services,132B,Glasdon UK LTD,23/10/2023,PE153908,1260.32,0.00,"Supply bins as per quotation EQ70091785 1/9/23Delivery to Wyre Council, Copse Road Depot, Copse Road, Fleetwood, Lancashire, FY7 6RP","Provision of Bins, Boxes and Sacks"
Wyre Council,http://opendatacommunities.org/doc/district-council/wyre,30/10/2023,People and Places,Environmental Services,132B,Key Engineering & Hygiene Supplies LTD,17/10/2023,PE153759,883.00,0.00,"Supply 50 boxes of blue refuse bags, code BL09OCI @ £17.66 per box of 200 Delivery to Wyre Council, Copse Road Depot, Copse Road, Fleetwood, FY7 6RP","Provision of Bins, Boxes and Sacks"
Wyre Council,http://opendatacommunities.org/doc/district-council/wyre,30/10/2023,People and Places,Environmental Services,132B,Veolia ES (UK) LTD,18/10/2023,PE153828,4977.81,0.00,Bin Provision,"Provision of Bins, Boxes and Sacks"
Wyre Council,http://opendatacommunities.org/doc/district-council/wyre,30/10/2023,People and Places,Support Services,135B,Amazon Business,13/10/2023,PE153615,10.76,0.00,Play money for school visit local democracy week,Public Relations
Wyre Council,http://opendatacommunities.org/doc/district-council/wyre,30/10/2023,Resources,Housing General Fund,134A,VODAFONE LIMITED,17/10/2023,RS153652,12.00,0.00,Mobile Phone Charges,Purchase Furniture
Wyre Council,http://opendatacommunities.org/doc/district-council/wyre,30/10/2023,Resources,Support Services,135B,Amazon Business,11/10/2023,RS153550,4.74,0.00,"Door Stop |Pack of 3| Anti-Skid, Durable, and Heavy Duty Rubber Door Stoppers | Grey| Ideal for All Types of Surfaces| Door Wedge.",Purchase Furniture
Wyre Council,http://opendatacommunities.org/doc/district-council/wyre,30/10/2023,People and Places,Planning and Development Servs,132C,Key Engineering & Hygiene Supplies LTD,30/10/2023,PE154095,28.35,0.00,Leather Brogues with steel toecap Size 9,Purchase of Tools or Equipment
Wyre Council,http://opendatacommunities.org/doc/district-council/wyre,30/10/2023,People and Places,Support Services,135B,CCS MEDIA LTD,30/10/2023,PE154114,316.68,0.00,"supply and deliver  as per quote 0296685 1 Yo Yo desk 120 black , with delivery attn Kath Pye , Copse Road Depot , FY7 6RP",Purchase of Tools or Equipment
Wyre Council,http://opendatacommunities.org/doc/district-council/wyre,30/10/2023,People and Places,Support Services,135B,Amazon Business,27/10/2023,PE154053,34.07,0.00,Tree cutting pack,Purchase of Tools or Equipment
Wyre Council,http://opendatacommunities.org/doc/district-council/wyre,30/10/2023,People and Places,Cultural and Related Services,132A,Amazon Business,26/10/2023,PE154029,4.17,0.00,A4 black card,Purchase of Tools or Equipment
Wyre Council,http://opendatacommunities.org/doc/district-council/wyre,30/10/2023,People and Places,Cultural and Related Services,132A,Amazon Business,26/10/2023,PE154029,17.49,0.00,1 x westcott scissors (childrens),Purchase of Tools or Equipment
Wyre Council,http://opendatacommunities.org/doc/district-council/wyre,30/10/2023,People and Places,Cultural and Related Services,132A,Amazon Business,26/10/2023,PE154029,14.90,0.00,a4 card red and green,Purchase of Tools or Equipment
Wyre Council,http://opendatacommunities.org/doc/district-council/wyre,30/10/2023,People and Places,Cultural and Related Services,132A,Amazon Business,27/10/2023,PE154052,10.82,0.00,Poster,Purchase of Tools or Equipment
Wyre Council,http://opendatacommunities.org/doc/district-council/wyre,30/10/2023,People and Places,Cultural and Related Services,132A,Amazon Business,27/10/2023,PE154051,7.72,0.00,sand,Purchase of Tools or Equipment
Wyre Council,http://opendatacommunities.org/doc/district-council/wyre,30/10/2023,People and Places,Cultural and Related Services,132A,Amazon Business,27/10/2023,PE154050,33.32,0.00,Seeds,Purchase of Tools or Equipment
Wyre Council,http://opendatacommunities.org/doc/district-council/wyre,30/10/2023,People and Places,Cultural and Related Services,132A,Amazon Business,27/10/2023,PE154049,5.82,0.00,gloves,Purchase of Tools or Equipment
Wyre Council,http://opendatacommunities.org/doc/district-council/wyre,30/10/2023,Resources,Support Services,135B,Amazon Business,16/10/2023,RS153649,179.66,0.00,CORDLESS HAMMER DRIVER DRILL,Purchase of Tools or Equipment
Wyre Council,http://opendatacommunities.org/doc/district-council/wyre,30/10/2023,People and Places,Cultural and Related Services,132A,Forge Leisure UK Limited,31/10/2023,PE153469,43356.00,0.00,"Two swimming pool covers, as follows: as per quote issued on 8th September 2022 to Fylde Coast YMCA: Fleetwood Leisure Centre: Main Pool, (1 x 15m x 25.3m) and Teaching Pool, (1 x 9.2m x 17.5m), both 8mm blue maxi therm.  To include delivery, fitting and",Purchase of Tools or Equipment
Wyre Council,http://opendatacommunities.org/doc/district-council/wyre,30/10/2023,People and Places,Cultural and Related Services,132A,Barry Collings Entertainments,18/10/2023,PE153840,4146.54,0.00,Roy Orbison & The Travelling Wilburys Experience - Marine Hall 28/9/23,Refund of Ticket Sales to Ext Promoters
Wyre Council,http://opendatacommunities.org/doc/district-council/wyre,30/10/2023,People and Places,Cultural and Related Services,132A,A M Productions (North West) LTD,09/10/2023,PE153417,2010.42,0.00,Patsy Cline 16/09/23 ticket sales,Refund of Ticket Sales to Ext Promoters
Wyre Council,http://opendatacommunities.org/doc/district-council/wyre,30/10/2023,People and Places,Cultural and Related Services,132A,Blackpool Council,26/10/2023,PE154032,767.52,0.00,TLT General waste collection,Refuse Collection
Wyre Council,http://opendatacommunities.org/doc/district-council/wyre,30/10/2023,People and Places,Cultural and Related Services,132A,Blackpool Council,30/10/2023,PE154019,1501.76,0.00,Marine Hall General Waste Collection 2023/24,Refuse Collection
Wyre Council,http://opendatacommunities.org/doc/district-council/wyre,30/10/2023,People and Places,Planning and Development Servs,132C,Suez Recycling And Recovery UK LTD,11/10/2023,PE153390,1178.43,0.00,waste removal market suez,Refuse Collection
Wyre Council,http://opendatacommunities.org/doc/district-council/wyre,30/10/2023,People and Places,Environmental Services,132B,Veolia ES (UK) LTD,18/10/2023,PE153828,194547.14,0.00,Domestic Waste Management Collection Contract 2023/24,Refuse Collection Contract
Wyre Council,http://opendatacommunities.org/doc/district-council/wyre,30/10/2023,People and Places,Environmental Services,132B,Veolia ES (UK) LTD,18/10/2023,PE153828,1756.64,0.00,Pension Pass Through,Refuse Collection Contract
Wyre Council,http://opendatacommunities.org/doc/district-council/wyre,30/10/2023,People and Places,Environmental Services,132B,Calico Enterprise,23/10/2023,PE153867,1946.64,0.00,Bulky Matters Contract Calico 2023/24,Refuse Collection Contract
Wyre Council,http://opendatacommunities.org/doc/district-council/wyre,30/10/2023,People and Places,Public Transport,133G,Andrew Signs LTD,03/10/2023,PE153313,224.80,0.00,payment for goods already received and invoiced on INV-1526,Repairs to Non-WBC Buildings
Wyre Council,http://opendatacommunities.org/doc/district-council/wyre,30/10/2023,Resources,Planning and Development Servs,132C,Allcool (NW) Ltd,25/10/2023,RS153401,5298.00,0.00,"Copse Road Depot: To Supply, install and commission 2 no. wall type systems into 1st floor server room and meeting room as per quote R-AC-23/06/103",Responsive Building Maintenance
Wyre Council,http://opendatacommunities.org/doc/district-council/wyre,30/10/2023,People and Places,Cultural and Related Services,132A,EAS Electrical Mechanical,10/10/2023,PE153451,48.00,0.00,Clock VR W Shelter 11: labour,Responsive Building Maintenance
Wyre Council,http://opendatacommunities.org/doc/district-council/wyre,30/10/2023,People and Places,Cultural and Related Services,132A,EAS Electrical Mechanical,11/10/2023,PE153485,231.43,0.00,Riverside Roon & Rangers Office:  Replaced faulty tubes in office and left spares as requested,Responsive Building Maintenance
Wyre Council,http://opendatacommunities.org/doc/district-council/wyre,30/10/2023,People and Places,Cultural and Related Services,132A,EAS Electrical Mechanical,11/10/2023,PE153484,217.10,0.00,Riverside Room & Rangers Office: Installation of socket for wall mounted TV,Responsive Building Maintenance
Wyre Council,http://opendatacommunities.org/doc/district-council/wyre,30/10/2023,People and Places,Planning and Development Servs,132C,EAS Electrical Mechanical,24/10/2023,PE153930,156.00,0.00,"Unit 6 Butts Close, Thornton Cleveleys, FY5 4HT: EICR Remedials",Responsive Building Maintenance
Wyre Council,http://opendatacommunities.org/doc/district-council/wyre,30/10/2023,People and Places,Support Services,135B,EAS Electrical Mechanical,13/10/2023,PE153619,632.26,0.00,"Civic Centre: Isolate radiator, valves passing, isolate supplies in basement, drain radiator, pressure not reducing on radiator, collected freeze machine from Smoths hire and order replacement trv.  remove rads and store safely",Responsive Building Maintenance
Wyre Council,http://opendatacommunities.org/doc/district-council/wyre,30/10/2023,People and Places,Environmental Services,132B,Aitch Tools & Fasteners LTD,03/10/2023,PE153309,98.88,0.00,various items -  as detailed in Julys Invoice,Responsive Building Maintenance
Wyre Council,http://opendatacommunities.org/doc/district-council/wyre,30/10/2023,People and Places,Planning and Development Servs,132C,ADJ Doors Ltd T/A Keman Roller Shutters,09/10/2023,PE153250,580.00,0.00,Supply and fit replacement light grid to sweeper shed on Copse Road.  Make repairs to the other light grid,Responsive Building Maintenance
Wyre Council,http://opendatacommunities.org/doc/district-council/wyre,30/10/2023,People and Places,Cultural and Related Services,132A,John Carney,24/10/2023,PE153925,180.00,0.00,Pool plant and Block YMCA: For carrying out roofing repairs.  Clear off roof from all debris and sand etc.  Apply Crompol solution to stop water ingress.,Responsive Building Maintenance
Wyre Council,http://opendatacommunities.org/doc/district-council/wyre,30/10/2023,People and Places,Support Services,135B,John Carney,24/10/2023,PE153924,80.00,0.00,Room 28: For clearing out gutters and unblocking drain pipe.  Replace stop end gutter to stop water running over.,Responsive Building Maintenance
Wyre Council,http://opendatacommunities.org/doc/district-council/wyre,30/10/2023,People and Places,Support Services,135B,John Carney,24/10/2023,PE153928,80.00,0.00,Civic Centre Kitchen room 066: For cleaning out and unblocking down pipe,Responsive Building Maintenance
Wyre Council,http://opendatacommunities.org/doc/district-council/wyre,30/10/2023,People and Places,Cultural and Related Services,132A,John Carney,25/10/2023,PE154014,280.00,0.00,Carrying out roofing repairs at Cottam Hall poulton,Responsive Building Maintenance
Wyre Council,http://opendatacommunities.org/doc/district-council/wyre,30/10/2023,People and Places,Environmental Services,132B,John Carney,25/10/2023,PE154013,380.00,0.00,Roofing repairs for Danfo Toilets Fleetwood Memorial Park,Responsive Building Maintenance
Wyre Council,http://opendatacommunities.org/doc/district-council/wyre,30/10/2023,People and Places,Cultural and Related Services,132A,John Carney,25/10/2023,PE154017,220.00,0.00,Repairs to Rangers Roof,Responsive Building Maintenance
Wyre Council,http://opendatacommunities.org/doc/district-council/wyre,30/10/2023,People and Places,Planning and Development Servs,132C,Leith Facilities Limited,12/10/2023,PE152930,350.00,0.00,Insurance claim settlement for completed works at Fleetwood Golf club,Responsive Building Maintenance
Wyre Council,http://opendatacommunities.org/doc/district-council/wyre,30/10/2023,People and Places,Planning and Development Servs,132C,Leith Facilities Limited,12/10/2023,PE152929,2760.00,0.00,Insurance claim settlement for completed works at Fleetwood Golf club,Responsive Building Maintenance
Wyre Council,http://opendatacommunities.org/doc/district-council/wyre,30/10/2023,People and Places,Cultural and Related Services,132A,GARRY CARR BUILDING SERVICES LTD,25/10/2023,PE153622,409.00,0.00,Marsh Mill: Carry out full clean down to all internal walls & Malgicide green areas,Responsive Building Maintenance
Wyre Council,http://opendatacommunities.org/doc/district-council/wyre,30/10/2023,People and Places,Cultural and Related Services,132A,GARRY CARR BUILDING SERVICES LTD,23/10/2023,PE153621,80.00,0.00,Marsh Mill: Assist with removal of loose shutter from sail and turn sails to inspect condition,Responsive Building Maintenance
Wyre Council,http://opendatacommunities.org/doc/district-council/wyre,30/10/2023,People and Places,Cultural and Related Services,132A,EVOLUTION CONSTRUCTION GROUP LTD,23/10/2023,PE153173,36.83,0.00,Ashdell Bowling Green: Investigate and rectify fault to door which seems to have dropped,Responsive Building Maintenance
Wyre Council,http://opendatacommunities.org/doc/district-council/wyre,30/10/2023,People and Places,Cultural and Related Services,132A,EVOLUTION CONSTRUCTION GROUP LTD,09/10/2023,PE153206,456.48,0.00,Mount Pavilion: replace 12 panes of glass after vandalism,Responsive Building Maintenance
Wyre Council,http://opendatacommunities.org/doc/district-council/wyre,30/10/2023,People and Places,Cultural and Related Services,132A,EVOLUTION CONSTRUCTION GROUP LTD,09/10/2023,PE153189,279.85,0.00,"Cottage, Mount Rd, Fleetwood: re-glaze 4 broken panes of glass after vandalism to cottages and order 120 spare panes of toughened glass to be stored at Marine Hall",Responsive Building Maintenance
Wyre Council,http://opendatacommunities.org/doc/district-council/wyre,30/10/2023,People and Places,Cultural and Related Services,132A,EVOLUTION CONSTRUCTION GROUP LTD,09/10/2023,PE153161,1167.09,0.00,Marine Hall: create open roof structure to area above fire escape to rear of stage in order to prevent access from high level roof above,Responsive Building Maintenance
Wyre Council,http://opendatacommunities.org/doc/district-council/wyre,30/10/2023,People and Places,Cultural and Related Services,132A,EVOLUTION CONSTRUCTION GROUP LTD,09/10/2023,PE153162,1536.46,0.00,Marine Hall: carry out essential joinery repairs to front of building and colonnade areas prior to re-painting works commencing,Responsive Building Maintenance
Wyre Council,http://opendatacommunities.org/doc/district-council/wyre,30/10/2023,People and Places,Cultural and Related Services,132A,EVOLUTION CONSTRUCTION GROUP LTD,09/10/2023,PE153171,1140.31,0.00,"Coastwatch Tower: Following vandalism/breakage of 4 large windows to coast guard external leaf, remove all loose glass and make safe and secure",Responsive Building Maintenance
Wyre Council,http://opendatacommunities.org/doc/district-council/wyre,30/10/2023,People and Places,Cultural and Related Services,132A,EVOLUTION CONSTRUCTION GROUP LTD,09/10/2023,PE153174,1785.49,0.00,"Splash Pad, YMCA Fleetwood: Following further worsening/collapse of decked area adjacent to YMCA building, carry out all repairs to joists that have caused decking to collapse",Responsive Building Maintenance
Wyre Council,http://opendatacommunities.org/doc/district-council/wyre,30/10/2023,People and Places,Environmental Services,132B,EVOLUTION CONSTRUCTION GROUP LTD,09/10/2023,PE153178,479.77,0.00,Garstang Rd Cemetery: timber repairs to window frames,Responsive Building Maintenance
Wyre Council,http://opendatacommunities.org/doc/district-council/wyre,30/10/2023,People and Places,Highways,133B,Glasdon UK LTD,10/10/2023,PE153430,535.38,0.00,"Supply one black phoenix memorial bench with plaque.Plaque inscription to read In Loving Memory of a truly wonderful Mum, Nana, Daughter and Sister Helen Louise Dean Forever in our Hearts and Missed Dearly1962 - 2022We love you MumPlease d",Seats and Shelters (Non BM)
Wyre Council,http://opendatacommunities.org/doc/district-council/wyre,30/10/2023,Resources,Support Services,135B,Civica UK LTD,09/10/2023,RS149623,6000.00,0.00,End of CivicaPay contract implementation - 20% on go-live as stated in the contract start terms,Software Maintenance
Wyre Council,http://opendatacommunities.org/doc/district-council/wyre,30/10/2023,Resources,Support Services,135B,NEC Software Solutions UK Limited,10/10/2023,RS153418,1900.00,0.00,Professional Services,Software Maintenance
Wyre Council,http://opendatacommunities.org/doc/district-council/wyre,30/10/2023,Resources,Support Services,135B,NEC Software Solutions UK Limited,10/10/2023,RS153399,1200.00,0.00,Email Connect - Support and Maintenance,Software Maintenance
Wyre Council,http://opendatacommunities.org/doc/district-council/wyre,30/10/2023,Resources,Support Services,135B,NEC Software Solutions UK Limited,16/10/2023,RS153711,1575.00,0.00,Address Finder ``Rev`s and Ben`s SaaS`` from 01/11/2023 to 31/10/2024,Software Maintenance
Wyre Council,http://opendatacommunities.org/doc/district-council/wyre,30/10/2023,Resources,Support Services,135B,NTA Monitor LTD,27/10/2023,RS154068,750.00,0.00,External Penetration Test A remote security assessment of the following systems: · 10 external facing IPs 1 day offsite for testing and reporting,Software Maintenance
Wyre Council,http://opendatacommunities.org/doc/district-council/wyre,30/10/2023,Resources,Support Services,135B,THE NETWORKING PEOPLE (TNP) LTD,11/10/2023,RS153488,2435.66,0.00,"Co-term - FortiGate-VM02V Unified Threat Protection (UTP) (IPS, Advanced Malware Protection, Application Control, URL, DNS & Video Filtering, Antispam Service, and FortiCare Premium)",Software Maintenance
Wyre Council,http://opendatacommunities.org/doc/district-council/wyre,30/10/2023,Resources,Support Services,135B,Collective Enterprises Limited,24/10/2023,RS153870,2850.00,0.00,Case Manager Core System 5 users,Software Maintenance
Wyre Council,http://opendatacommunities.org/doc/district-council/wyre,30/10/2023,Resources,Support Services,135B,Idox Software LTD,09/10/2023,RS153388,5775.00,0.00,Test version of Public Access for Idox to cover all departments.,Software Mtce Reserves Funded
Wyre Council,http://opendatacommunities.org/doc/district-council/wyre,30/10/2023,People and Places,Cultural and Related Services,132A,Bannister Hall Ltd,12/10/2023,PE153612,136.95,0.00,Supply and deliver the following as your email quotationCeanothus Marie SimonC2Qty 33Each £4.15,Special Events
Wyre Council,http://opendatacommunities.org/doc/district-council/wyre,30/10/2023,People and Places,Cultural and Related Services,132A,Bannister Hall Ltd,12/10/2023,PE153612,118.40,0.00,Ligustrum AureumC2Qty 37Each £3.20,Special Events
Wyre Council,http://opendatacommunities.org/doc/district-council/wyre,30/10/2023,People and Places,Cultural and Related Services,132A,Bannister Hall Ltd,12/10/2023,PE153612,69.30,0.00,Fuchsia ‘Mrs Popple’C2Qty 18Each £3.85,Special Events
Wyre Council,http://opendatacommunities.org/doc/district-council/wyre,30/10/2023,People and Places,Cultural and Related Services,132A,Bannister Hall Ltd,12/10/2023,PE153612,140.25,0.00,Hebe ‘beauty blue’C2Qty 51Each £2.75,Special Events
Wyre Council,http://opendatacommunities.org/doc/district-council/wyre,30/10/2023,People and Places,Cultural and Related Services,132A,Bannister Hall Ltd,12/10/2023,PE153612,20.70,0.00,Nepeta racemosaC3Qty 6Each £3.45,Special Events
Wyre Council,http://opendatacommunities.org/doc/district-council/wyre,30/10/2023,People and Places,Cultural and Related Services,132A,Bannister Hall Ltd,12/10/2023,PE153612,14.50,0.00,"Santolina chamaecyparissus11cmQty 5Each £2.90Delivery to Wyre Council, Copse Road Depot, Copse Road, Fleetwood, FY7 6RP.",Special Events
Wyre Council,http://opendatacommunities.org/doc/district-council/wyre,30/10/2023,People and Places,Cultural and Related Services,132A,EVENT MANAGEMENT AND TRAINING LTD,11/10/2023,PE153571,342.00,0.00,For the prevision of 3 medics -Monday 8th May at Garstang town centre - to meet at Cherestanc SquareCoronation Walk event 11am -4pm £342,Special Events
Wyre Council,http://opendatacommunities.org/doc/district-council/wyre,30/10/2023,People and Places,Cultural and Related Services,132A,GARRY CARR BUILDING SERVICES LTD,25/10/2023,PE153931,100.00,0.00,Marsh Mill: Turning of sails 21/10/23,Special Events
Wyre Council,http://opendatacommunities.org/doc/district-council/wyre,30/10/2023,People and Places,Support Services,135B,HMA Tree Care,11/10/2023,PE153562,670.00,0.00,"23/08/23 Quotation 519 Site Address Donnington road , Carleton , Poulton le fylde , Lancashire , FY6 7TGItem No Item Work Description ValueT3 Alder Fell to ground level and remove all arisings including stump £150.00T9 Crack Willow Reduce",Special Maintenance - Trees
Wyre Council,http://opendatacommunities.org/doc/district-council/wyre,30/10/2023,People and Places,Support Services,135B,HMA Tree Care,05/10/2023,PE153360,960.00,0.00,"Quote No: 527 Surveyor: Ben Waller Site Ref No: 574Site Address meadow park , Lancaster road , Garstang , Lancashire , PR3 1TAT1 Lime Crown Lift to provide 3 metres clearance from ground level and reduce away fromroad sign. Removel of all deadwood",Special Maintenance - Trees
Wyre Council,http://opendatacommunities.org/doc/district-council/wyre,30/10/2023,People and Places,Support Services,135B,T-Fer Tree Surgeons,16/10/2023,PE153634,640.00,0.00,"180923 Quote 0021 14-20 Bolton ave, Poulton, FY67TWClear self sets within 1m of fence line.£180Open spaceAsh – remove dead branch, Ash – Lift over path£90 Total net amount £270 Quote 002247 the avenue, Poulton, FY67NAReduce ba",Special Maintenance - Trees
Wyre Council,http://opendatacommunities.org/doc/district-council/wyre,30/10/2023,People and Places,Support Services,135B,T-Fer Tree Surgeons,19/10/2023,PE153853,1330.00,0.00,"18/09/2023       Preesal Park, Playing field, FY60PTCrown reduce back to boundary, crown lift and remove dead stubs. X19 Alder/Lime£70 Per treeTotal net value £1,330VAT £0Quote total £1,330",Special Maintenance - Trees
Wyre Council,http://opendatacommunities.org/doc/district-council/wyre,30/10/2023,People and Places,Support Services,135B,T-Fer Tree Surgeons,11/10/2023,PE153567,180.00,0.00,"Quote 002518092372 Northumberland ave, Thornton, FY52LHReduce back to boundary and clear garage Hawthorn/Leylandii£180Total net amount £180Vat @ 20% £0QUOTE TOTAL £180",Special Maintenance - Trees
Wyre Council,http://opendatacommunities.org/doc/district-council/wyre,30/10/2023,People and Places,Support Services,135B,T-Fer Tree Surgeons,11/10/2023,PE153568,270.00,0.00,"Quote 002018/09/2023      Location/AddressJob DescriptionPrice114 Chester ave, PoultonClear shrubs and encroachment back from garage and fence line, reduce remaining trees and remove ivy from fence.£270Total Net amount £270Vat @20% £0",Special Maintenance - Trees
Wyre Council,http://opendatacommunities.org/doc/district-council/wyre,30/10/2023,People and Places,Environmental Services,132B,V P  PLC,25/10/2023,PE153438,325.00,0.00,1 x full set of grave mats  1x full set baby grave mats + associated delivery costs,Special Works
Wyre Council,http://opendatacommunities.org/doc/district-council/wyre,30/10/2023,People and Places,Environmental Services,132B,V P  PLC,25/10/2023,PE153438,585.00,0.00,1 x full set of grave mats  1x full set baby grave mats + associated delivery costs,Special Works
Wyre Council,http://opendatacommunities.org/doc/district-council/wyre,30/10/2023,People and Places,Environmental Services,132B,V P  PLC,19/10/2023,PE153439,35.00,0.00,1 x full set of grave mats  1x full set baby grave mats + associated delivery costs,Special Works
Wyre Council,http://opendatacommunities.org/doc/district-council/wyre,30/10/2023,People and Places,Housing General Fund,134A,Amazon Business,09/10/2023,PE153363,57.30,0.00,stationery items and folders unavailable from Bates for People and places admin and Care and repair - treasury tags / pink square cut folders and foldover clipboards,Stationery
Wyre Council,http://opendatacommunities.org/doc/district-council/wyre,30/10/2023,Resources,Support Services,135B,Amazon Business,11/10/2023,RS153580,7.49,0.00,Scotch 20 cm Titanium Scissors - White/Green.,Stationery
Wyre Council,http://opendatacommunities.org/doc/district-council/wyre,30/10/2023,Resources,Support Services,135B,Amazon Business,11/10/2023,RS153579,7.49,0.00,Scotch 20 cm Titanium Scissors - White/Green.,Stationery
Wyre Council,http://opendatacommunities.org/doc/district-council/wyre,30/10/2023,People and Places,Housing General Fund,134A,Amazon Business,10/10/2023,PE153441,4.99,0.00,stationery items and folders unavailable from Bates for People and places admin and Care and repair - treasury tags / pink square cut folders and foldover clipboards,Stationery
Wyre Council,http://opendatacommunities.org/doc/district-council/wyre,30/10/2023,People and Places,Support Services,135B,Amazon Business,10/10/2023,PE153414,14.00,0.00,stationery items and folders unavailable from Bates for People and places admin and Care and repair - treasury tags / pink square cut folders and foldover clipboards,Stationery
Wyre Council,http://opendatacommunities.org/doc/district-council/wyre,30/10/2023,People and Places,Current Assets,130B,Standard Fuel Oils,27/10/2023,PE153906,44943.79,0.00,"Supply 36004 litres of diesel  @124.83ppl 18/10/2023  Delivered to Wyre Council, Copse Road Depot, Copse Road, Fleetwood, FY7 6RP.",Stock - Copse Road Fuel
Wyre Council,http://opendatacommunities.org/doc/district-council/wyre,30/10/2023,Resources,Current Assets,130B,Whistl Uk Limited,19/10/2023,RS153729,452.87,0.00,Postal charges 01/04/2023-31/03/2024,Stores Purchases
Wyre Council,http://opendatacommunities.org/doc/district-council/wyre,30/10/2023,Resources,Current Assets,130B,Whistl Uk Limited,19/10/2023,RS153729,6.80,0.00,Postal charges 01/04/2023-31/03/2024,Stores Purchases
Wyre Council,http://opendatacommunities.org/doc/district-council/wyre,30/10/2023,Resources,Current Assets,130B,Whistl Uk Limited,09/10/2023,RS153342,402.66,0.00,Postal charges 01/04/2023-31/03/2024,Stores Purchases
Wyre Council,http://opendatacommunities.org/doc/district-council/wyre,30/10/2023,Resources,Current Assets,130B,Whistl Uk Limited,12/10/2023,RS153597,205.27,0.00,Postal charges 01/04/2023-31/03/2024,Stores Purchases
Wyre Council,http://opendatacommunities.org/doc/district-council/wyre,30/10/2023,Resources,Current Assets,130B,Whistl Uk Limited,12/10/2023,RS153597,17.60,0.00,Postal charges 01/04/2023-31/03/2024,Stores Purchases
Wyre Council,http://opendatacommunities.org/doc/district-council/wyre,30/10/2023,Resources,Current Assets,130B,Whistl Uk Limited,24/10/2023,RS153921,195.64,0.00,Postal charges 01/04/2023-31/03/2024,Stores Purchases
Wyre Council,http://opendatacommunities.org/doc/district-council/wyre,30/10/2023,Resources,Current Assets,130B,Whistl Uk Limited,24/10/2023,RS153921,22.80,0.00,Postal charges 01/04/2023-31/03/2024,Stores Purchases
Wyre Council,http://opendatacommunities.org/doc/district-council/wyre,30/10/2023,Resources,Current Assets,130B,Pitney Bowes LTD  Postage By Phone,11/10/2023,RS153477,1001.24,0.00,Franking Machine 07/09/23 to 20/09/23,Stores Purchases
Wyre Council,http://opendatacommunities.org/doc/district-council/wyre,30/10/2023,People and Places,Environmental Services,132B,Myerscough College,09/10/2023,PE153249,240.00,0.00,To attend courses for PA1 PA6a training at Myerscough College,Street Cleansing Projects
Wyre Council,http://opendatacommunities.org/doc/district-council/wyre,30/10/2023,People and Places,Environmental Services,132B,Myerscough College,09/10/2023,PE153249,105.00,0.00,2 x PA6a @105 each,Street Cleansing Projects
Wyre Council,http://opendatacommunities.org/doc/district-council/wyre,30/10/2023,People and Places,Environmental Services,132B,Myerscough College,09/10/2023,PE153335,210.00,0.00,"Re-sit for PA1 and PA6a Training, 18th September 2023 @ £70.00 per person Mark Birley Jordan Johnson",Street Cleansing Projects
Wyre Council,http://opendatacommunities.org/doc/district-council/wyre,30/10/2023,People and Places,Support Services,135B, GM Training Services,27/10/2023,PE153989,1837.16,0.00,FLT courses  Dates to be confirmed with Roger Brocklebank   Costs are: 2 x 1-day courses @ £595.00 = £1190.00 NPORS certification = £60.00 per candidate x 5 = £300.00 1 x 3-day course = 3 days training @ £595.00 per day total = £1785.00 NPORS certificatio,Technical Training
Wyre Council,http://opendatacommunities.org/doc/district-council/wyre,30/10/2023,People and Places,Support Services,135B, GM Training Services,27/10/2023,PE153989,918.56,0.00,FLT courses  Dates to be confirmed with Roger Brocklebank   Costs are: 2 x 1-day courses @ £595.00 = £1190.00 NPORS certification = £60.00 per candidate x 5 = £300.00 1 x 3-day course = 3 days training @ £595.00 per day total = £1785.00 NPORS certificatio,Technical Training
Wyre Council,http://opendatacommunities.org/doc/district-council/wyre,30/10/2023,People and Places,Environmental Services,132B, GM Training Services,27/10/2023,PE153989,459.28,0.00,FLT courses  Dates to be confirmed with Roger Brocklebank   Costs are: 2 x 1-day courses @ £595.00 = £1190.00 NPORS certification = £60.00 per candidate x 5 = £300.00 1 x 3-day course = 3 days training @ £595.00 per day total = £1785.00 NPORS certificatio,Technical Training
Wyre Council,http://opendatacommunities.org/doc/district-council/wyre,30/10/2023,Resources,Planning and Development Servs,132C,Daisy Communications LTD,23/10/2023,RS153398,13.87,0.00,Services Charges 01/10/23-31/10/36,Telephone - Buildings and Offices
Wyre Council,http://opendatacommunities.org/doc/district-council/wyre,30/10/2023,Resources,Support Services,135B,Daisy Communications LTD,23/10/2023,RS153398,0.12,0.00,Call chrges 01/10/23-31/10/25,Telephone - Buildings and Offices
Wyre Council,http://opendatacommunities.org/doc/district-council/wyre,30/10/2023,Resources,Support Services,135B,Daisy Communications LTD,23/10/2023,RS153398,2.52,0.00,Services Charges 01/10/23-31/10/40,Telephone - Buildings and Offices
Wyre Council,http://opendatacommunities.org/doc/district-council/wyre,30/10/2023,Resources,Cultural and Related Services,132A,Daisy Communications LTD,23/10/2023,RS153398,72.96,0.00,Services Charges 01/10/23-31/10/27,Telephone - Buildings and Offices
Wyre Council,http://opendatacommunities.org/doc/district-council/wyre,30/10/2023,Resources,Support Services,135B,Daisy Communications LTD,23/10/2023,RS153398,2529.12,0.00,Call chrges 01/10/23-31/10/26,Telephone - Buildings and Offices
Wyre Council,http://opendatacommunities.org/doc/district-council/wyre,30/10/2023,Resources,Cultural and Related Services,132A,Daisy Communications LTD,23/10/2023,RS153398,13.87,0.00,Services Charges 01/10/23-31/10/24,Telephone - Buildings and Offices
Wyre Council,http://opendatacommunities.org/doc/district-council/wyre,30/10/2023,Resources,Cultural and Related Services,132A,Daisy Communications LTD,23/10/2023,RS153398,13.87,0.00,Services Charges 01/10/23-31/10/25,Telephone - Buildings and Offices
Wyre Council,http://opendatacommunities.org/doc/district-council/wyre,30/10/2023,Resources,Cultural and Related Services,132A,Daisy Communications LTD,23/10/2023,RS153398,14.02,0.00,Services Charges 01/10/23-31/10/31,Telephone - Buildings and Offices
Wyre Council,http://opendatacommunities.org/doc/district-council/wyre,30/10/2023,Resources,Cultural and Related Services,132A,Daisy Communications LTD,23/10/2023,RS153398,0.22,0.00,Call chrges 01/10/23-31/10/24,Telephone - Buildings and Offices
Wyre Council,http://opendatacommunities.org/doc/district-council/wyre,30/10/2023,Resources,Cultural and Related Services,132A,Daisy Communications LTD,23/10/2023,RS153398,39.86,0.00,Services Charges 01/10/23-31/10/32,Telephone - Buildings and Offices
Wyre Council,http://opendatacommunities.org/doc/district-council/wyre,30/10/2023,Resources,Cultural and Related Services,132A,Daisy Communications LTD,23/10/2023,RS153398,0.03,0.00,Call chrges 01/10/23-31/10/23,Telephone - Buildings and Offices
Wyre Council,http://opendatacommunities.org/doc/district-council/wyre,30/10/2023,Resources,Cultural and Related Services,132A,Daisy Communications LTD,23/10/2023,RS153398,27.74,0.00,Services Charges 01/10/23-31/10/26,Telephone - Buildings and Offices
Wyre Council,http://opendatacommunities.org/doc/district-council/wyre,30/10/2023,Resources,Cultural and Related Services,132A,Daisy Communications LTD,23/10/2023,RS153398,13.87,0.00,Services Charges 01/10/23-31/10/29,Telephone - Buildings and Offices
Wyre Council,http://opendatacommunities.org/doc/district-council/wyre,30/10/2023,Resources,Cultural and Related Services,132A,Daisy Communications LTD,23/10/2023,RS153398,79.43,0.00,Services Charges 01/10/23-31/10/30,Telephone - Buildings and Offices
Wyre Council,http://opendatacommunities.org/doc/district-council/wyre,30/10/2023,Resources,Support Services,135B,Daisy Communications LTD,23/10/2023,RS153398,39.72,0.00,Services Charges 01/10/23-31/10/43,Telephone - Buildings and Offices
Wyre Council,http://opendatacommunities.org/doc/district-council/wyre,30/10/2023,Resources,Support Services,135B,Daisy Communications LTD,23/10/2023,RS153398,13.87,0.00,Services Charges 01/10/23-31/10/45,Telephone - Buildings and Offices
Wyre Council,http://opendatacommunities.org/doc/district-council/wyre,30/10/2023,Resources,Support Services,135B,Daisy Communications LTD,23/10/2023,RS153398,855.65,0.00,Services Charges 01/10/23-31/10/46,Telephone - Buildings and Offices
Wyre Council,http://opendatacommunities.org/doc/district-council/wyre,30/10/2023,Resources,Environmental Services,132B,Daisy Communications LTD,23/10/2023,RS153398,13.87,0.00,Services Charges 01/10/23-31/10/34,Telephone - Buildings and Offices
Wyre Council,http://opendatacommunities.org/doc/district-council/wyre,30/10/2023,Resources,Environmental Services,132B,Daisy Communications LTD,23/10/2023,RS153398,41.61,0.00,Services Charges 01/10/23-31/10/35,Telephone - Buildings and Offices
Wyre Council,http://opendatacommunities.org/doc/district-council/wyre,30/10/2023,Resources,Planning and Development Servs,132C,Daisy Communications LTD,23/10/2023,RS153398,0.59,0.00,Services Charges 01/10/23-31/10/37,Telephone - Buildings and Offices
Wyre Council,http://opendatacommunities.org/doc/district-council/wyre,30/10/2023,Resources,Planning and Development Servs,132C,Daisy Communications LTD,23/10/2023,RS153398,2.52,0.00,Services Charges 01/10/23-31/10/39,Telephone - Buildings and Offices
Wyre Council,http://opendatacommunities.org/doc/district-council/wyre,30/10/2023,People and Places,Support Services,135B,Cleveleys Town Centre Group Ltd,12/10/2023,PE153610,915.00,0.00,Wyre Contribution to Cleveleys in Bloom,Tourism Support
Wyre Council,http://opendatacommunities.org/doc/district-council/wyre,30/10/2023,People and Places,Planning and Development Servs,132C,IBI GROUP UK LTD,23/10/2023,PE153846,8950.00,0.00,Poulton Regeneration Framework – additional development appraisal fees,Town Centre Strategy Fund
Wyre Council,http://opendatacommunities.org/doc/district-council/wyre,30/10/2023,People and Places,Planning and Development Servs,132C,IBI GROUP UK LTD,20/10/2023,PE153845,16546.25,0.00,"Fees for preparing the town centre regeneration frameworks for Cleveleys, Garstang and Poulton as per your fee proposal dated 14 May 2021.",Town Centre Strategy Fund
Wyre Council,http://opendatacommunities.org/doc/district-council/wyre,30/10/2023,Resources,Corporate and Democratic Core,131A,Emma Taylor Presents,05/10/2023,RS153353,708.00,0.00,"public speaking training for 10 new councillors, 2/10/23",Training - Non HR Controlled
Wyre Council,http://opendatacommunities.org/doc/district-council/wyre,30/10/2023,People and Places,Planning and Development Servs,132C,Key Engineering & Hygiene Supplies LTD,12/10/2023,PE153587,12.16,0.00,Extra Large - black polo shirt with Wyre council logo,Uniforms
Wyre Council,http://opendatacommunities.org/doc/district-council/wyre,30/10/2023,People and Places,Planning and Development Servs,132C,Key Engineering & Hygiene Supplies LTD,12/10/2023,PE153587,4.00,0.00,EMBROIDERED LOGO FOR WYRE COUNCIL,Uniforms
